{"text_format":"1","workbook":"xlsx","n_sheets":17,"sheets":["Title page","MCDA Tool","STD","results MCDA tool","Austria","Croatia","Germany","Hungary","MCDA Tool completed example","Detailed instructions","Norway","Spain","U.K.","Mean all countries","Weights","Netherlands","Lists"],"not_rendered":{"charts":21,"images":10,"macros":1,"external_links":0,"defined_names":0,"comments":1,"pivot_tables":0},"unopened":[],"bounds":{"document_bytes":16777216,"sheet_cells":100000,"rows_first":2000,"rows_last":500,"rows_between":2000,"halvings":0,"cell_chars":16384,"cell_head_chars":4096},"cells_cut":0,"cells_raw":0,"read":"whole","date_system":"1900"}

{"sheet":"Title page","index":0,"n_rows":34,"n_cols":1,"rows_kept":34,"cut":false,"hidden":false,"merged":[[13,0,13,8],[0,0,0,8],[1,0,1,8],[2,0,2,8],[3,0,3,8],[5,0,5,8],[6,0,6,8],[7,0,7,8],[8,0,8,1],[9,0,9,8],[10,0,10,8],[11,0,11,8],[12,0,12,8]]}
["Welcome to the SELFIE Multi-Criteria Decision Analysis tool "]
["\n"]
[]
["For more detailed information on the implementation of MCDA in SELFIE, click here to see the SELFIE MCDA paper in BMC Health Services Research. "]
[]
["Steps undertaken in the MCDA tool"]
["1) Map your outcome measures onto \nthe eight outcome measure in this MCDA tool"]
["2) Standardise your outcome scores"]
["3) Select a country to use its weight set that reflects \nthe relative importance of the outcomes"]
["4) Calculate the partial and overall MCDA values"]
["5) Interpet the MCDA results "]
["Go to the sheet 'MCDA Tool' to start\nPlease remember to enable macros before you can use this worksheet"]
[]
[]
[]
[]
[]
[]
[]
[]
[]
[]
[]
[]
[]
[]
[]
[]
[]
[]
[]
[]
[]
["\n"]

{"sheet":"MCDA Tool","index":1,"n_rows":66,"n_cols":17,"rows_kept":66,"cut":false,"hidden":false,"merged":[[0,10,0,11],[2,2,2,6],[2,0,3,0],[27,0,37,0],[27,1,27,4],[28,2,28,4],[5,0,14,0],[0,0,0,8],[16,1,16,5],[5,1,5,4],[39,0,49,0],[40,2,40,6],[39,1,39,6],[54,1,55,1],[16,0,25,0],[53,0,66,0],[65,2,65,4],[65,5,65,7],[65,8,65,10],[53,2,53,16],[54,2,54,4],[54,5,54,7],[54,8,54,10],[54,11,54,13],[54,14,54,16],[65,11,65,13],[65,14,65,16]]}
["MCDA TOOL",null,null,null,null,null,null,null,null,null,"Yellow cells are meant to be filled in by you"]
[]
["Step 1:","Number of alternatives:","3 alternatives"]
[null,"Name \nalternative A:",null,"Name \nalternative B:",null,"Name alternative C:"]
[]
["Step 2:","SCORES ON OUTCOMES"]
[null,"Outcomes",{"$f":"IF(NOT(ISBLANK($C$4)),$C$4, \"Alternative A\")","v":"Alternative A"},{"$f":"IF(NOT(ISBLANK($E$4)),$E$4, \"Alternative B\")","v":"Alternative B"},{"$f":"IF(NOT(ISBLANK($G$4)),$G$4, \"Alternative C\")","v":"Alternative C"}]
[null,"Physical functioning"]
[null,"Psychological well-being"]
[null,"Social relationships & participation"]
[null,"Enjoyment of life"]
[null,"Resilience"]
[null,"Person-centeredness"]
[null,"Continuity of care"]
[null,"Total costs"]
[]
["Step 3:","INFORMATION ABOUT  SCORES ON OUTCOMES"]
[null,"Outcomes","Outcome available","Minimum possible score","Maximum possible score","Higher score implies"]
[null,"Physical functioning",{"$f":"IF(SUMPRODUCT(--ISNUMBER(C8:E8))>0,\"Yes\",\"No\")","v":"No"}]
[null,"Psychological well-being",{"$f":"IF(SUMPRODUCT(--ISNUMBER(C9:E9))>0,\"Yes\",\"No\")","v":"No"}]
[null,"Social relationships & participation","No"]
[null,"Enjoyment of life","No"]
[null,"Resilience","No"]
[null,"Person-centeredness","No"]
[null,"Continuity of care","No"]
[null,"Total costs","No"]
[]
["Step 4:","STANDARDISED OUTCOME SCORES"]
[null,"Select a standardisation method:","Global ranging standardisation"]
[null,"Outcomes",{"$f":"IF(NOT(ISBLANK($C$4)),$C$4, \"Alternative A\")","v":"Alternative A"},{"$f":"IF(NOT(ISBLANK($E$4)),$E$4, \"Alternative \nB\")","v":"Alternative \nB"},{"$f":"IF(NOT(ISBLANK($G$4)),$G$4, \"Alternative C\")","v":"Alternative C"}]
[null,"Physical functioning"]
[null,"Psychological well-being"]
[null,"Social relationships & participation"]
[null,"Enjoyment of life"]
[null,"Resilience"]
[null,"Person-centeredness"]
[null,"Continuity of care"]
[null,"Total costs"]
[]
["Step 5:","RELATIVE WEIGHTS"]
[null,"Select a country from \nthe list:","Mean all countries"]
[null,"Outcomes","PATIENTS","PARTNERS","PROFESSIONALS","PAYERS","POLICY MAKERS"]
[null,"Physical functioning",0.1494612114950396,0.10725679240352276,0.10422670655478029,0.13324180864939905,0.12260292152881684]
[null,"Psychological well-being",0.14073285333556818,0.14420061707124782,0.14340305912735762,0.1640050303134479,0.15257924591178779]
[null,"Social relationships & participation",0.10513098388747331,0.1113080450305423,0.11043619983497729,0.11418471787709919,0.1218175086668515]
[null,"Enjoyment of life",0.21004698657032619,0.22527913247444575,0.20948889357964204,0.24505144255466235,0.23170107259534184]
[null,"Resilience",0.14281047616208659,0.12409157288305207,0.12120446833025872,0.1214541562609143,0.13010741589581029]
[null,"Person-centeredness",8.0761284050266488E-2,0.10120972997307898,0.11624534436783994,6.9221015111406131E-2,8.1268722036728511E-2]
[null,"Continuity of care",0.13296413804214663,0.14879294569837384,0.14254748752440935,9.3354059128299693E-2,0.10995198823344202]
[null,"Total costs",3.8092066457093059E-2,3.7861164465736459E-2,5.2447840680734867E-2,5.9487770104771506E-2,4.9971125131221074E-2]
[]
[]
[]
["Step 6:",null,"WEIGHTED SCORES"]
[null,"Outcomes","PATIENTS",null,null,"PARTNERS",null,null,"PROFESSIONALS",null,null,"PAYERS",null,null,"POLICY MAKERS"]
[null,null,{"$f":"IF(NOT(ISBLANK($C$4)),$C$4, \"Alternative A\")","v":"Alternative A"},{"$f":"IF(NOT(ISBLANK($E$4)),$E$4, \"Alternative \nB\")","v":"Alternative \nB"},{"$f":"IF(NOT(ISBLANK($G$4)),$G$4, \"Alternative C\")","v":"Alternative C"},{"$f":"IF(NOT(ISBLANK($C$4)),$C$4, \"Alternative \nA\")","v":"Alternative \nA"},{"$f":"IF(NOT(ISBLANK($E$4)),$E$4, \"Alternative \nB\")","v":"Alternative \nB"},{"$f":"IF(NOT(ISBLANK($G$4)),$G$4, \"Alternative C\")","v":"Alternative C"},{"$f":"IF(NOT(ISBLANK($C$4)),$C$4, \"Alternative A\")","v":"Alternative A"},{"$f":"IF(NOT(ISBLANK($E$4)),$E$4, \"Alternative B\")","v":"Alternative B"},{"$f":"IF(NOT(ISBLANK($G$4)),$G$4, \"Alternative C\")","v":"Alternative C"},{"$f":"IF(NOT(ISBLANK($C$4)),$C$4, \"Alternative A\")","v":"Alternative A"},{"$f":"IF(NOT(ISBLANK($E$4)),$E$4, \"Alternative B\")","v":"Alternative B"},{"$f":"IF(NOT(ISBLANK($G$4)),$G$4, \"Alternative C\")","v":"Alternative C"},{"$f":"IF(NOT(ISBLANK($C$4)),$C$4, \"Alternative A\")","v":"Alternative A"},{"$f":"IF(NOT(ISBLANK($E$4)),$E$4, \"Alternative B\")","v":"Alternative B"},{"$f":"IF(NOT(ISBLANK($G$4)),$G$4, \"Alternative C\")","v":"Alternative C"}]
[null,"Physical functioning"]
[null,"Psychological well-being"]
[null,"Social relationships & participation"]
[null,"Enjoyment of life"]
[null,"Resilience"]
[null,"Person-centeredness"]
[null,"Continuity of care"]
[null,"Total costs"]
[null,"Overall value score",{"$f":"IF(SUMPRODUCT(--(C57:C64<>\"\"))=0,\"\",SUM(C57:C64))","v":""},"","","","","","","","",{"$f":"IF(SUMPRODUCT(--(L57:L64<>\"\"))=0,\"\",SUM(L57:L64))","v":""},{"$f":"IF(SUMPRODUCT(--(M57:M64<>\"\"))=0,\"\",SUM(M57:M64))","v":""},"","","",""]
[null,"Preferred alternative"]

{"sheet":"STD","index":2,"n_rows":11,"n_cols":7,"rows_kept":11,"cut":false,"hidden":true,"merged":[[1,4,1,6],[0,0,0,6],[1,0,1,2]]}
["OUTPUT"]
["RELATIVE STANDARDISATION",null,null,null,"NORMALISATION"]
[{"$f":"IF(ISTEXT('MCDA Tool'!$C$4),'MCDA Tool'!$C$4, \"A\")","v":"A"},{"$f":"IF(ISTEXT('MCDA Tool'!$E$4),'MCDA Tool'!$E$4, \"B\")","v":"B"},{"$f":"IF(ISTEXT('MCDA Tool'!$G$4),'MCDA Tool'!$G$4, \"C\")","v":"C"},null,{"$f":"IF(ISTEXT('MCDA Tool'!$C$4),'MCDA Tool'!$C$4, \"A\")","v":"A"},{"$f":"IF(ISTEXT('MCDA Tool'!$E$4),'MCDA Tool'!$E$4, \"B\")","v":"B"},{"$f":"IF(ISTEXT('MCDA Tool'!$G$4),'MCDA Tool'!$G$4, \"C\")","v":"C"}]
[{"$f":"IF(AND('MCDA Tool'!F19=\"better performance\",'MCDA Tool'!$C$3=\"3 alternatives\"),'MCDA Tool'!C8/SUM('MCDA Tool'!C8^3+'MCDA Tool'!D8^3+'MCDA Tool'!E8^3)^(1/3),IF(AND('MCDA Tool'!F19=\"worse performance\",'MCDA Tool'!$C$3=\"3 alternatives\"),(1/'MCDA Tool'!C8)/SUM((1/'MCDA Tool'!C8)^3+(1/'MCDA Tool'!D8)^3+(1/'MCDA Tool'!E8)^3)^(1/3),IF(AND('MCDA Tool'!F19=\"better performance\",'MCDA Tool'!$C$3=\"2 alternatives\"),'MCDA Tool'!C8/SUM('MCDA Tool'!C8^2+'MCDA Tool'!D8^2)^(1/2),IF(AND('MCDA Tool'!F19=\"worse performance\",'MCDA Tool'!$C$3=\"2 alternatives\"),(1/'MCDA Tool'!C8)/SUM((1/'MCDA Tool'!C8)^2+(1/'MCDA Tool'!D8)^2)^(1/2)))))","v":false},{"$f":"IF(AND('MCDA Tool'!F19=\"better performance\",'MCDA Tool'!$C$3=\"3 alternatives\"),'MCDA Tool'!D8/SUM('MCDA Tool'!C8^3+'MCDA Tool'!D8^3+'MCDA Tool'!E8^3)^(1/3),IF(AND('MCDA Tool'!F19=\"worse performance\",'MCDA Tool'!$C$3=\"3 alternatives\"),(1/'MCDA Tool'!D8)/SUM((1/'MCDA Tool'!C8)^3+(1/'MCDA Tool'!D8)^3+(1/'MCDA Tool'!E8)^3)^(1/3),IF(AND('MCDA Tool'!F19=\"better performance\",'MCDA Tool'!$C$3=\"2 alternatives\"),'MCDA Tool'!D8/SUM('MCDA Tool'!C8^2+'MCDA Tool'!D8^2)^(1/2),IF(AND('MCDA Tool'!F19=\"worse performance\",'MCDA Tool'!$C$3=\"2 alternatives\"),(1/'MCDA Tool'!D8)/SUM((1/'MCDA Tool'!C8)^2+(1/'MCDA Tool'!D8)^2)^(1/2)))))","v":false},{"$f":"IF(AND('MCDA Tool'!F19=\"better performance\",'MCDA Tool'!$C$3=\"3 alternatives\"),'MCDA Tool'!E8/SUM('MCDA Tool'!C8^3+'MCDA Tool'!D8^3+'MCDA Tool'!E8^3)^(1/3),IF(AND('MCDA Tool'!F19=\"worse performance\",'MCDA Tool'!$C$3=\"3 alternatives\"),(1/'MCDA Tool'!E8)/SUM((1/'MCDA Tool'!C8)^3+(1/'MCDA Tool'!D8)^3+(1/'MCDA Tool'!E8)^3)^(1/3)))","v":false},null,{"$f":"IF('MCDA Tool'!$F19=\"better performance\",('MCDA Tool'!C8-'MCDA Tool'!D19)/('MCDA Tool'!E19-'MCDA Tool'!D19), IF('MCDA Tool'!F19=\"worse performance\",1-('MCDA Tool'!C8-'MCDA Tool'!D19)/('MCDA Tool'!E19-'MCDA Tool'!D19)))","v":false},{"$f":"IF('MCDA Tool'!F19=\"better performance\",('MCDA Tool'!D8-'MCDA Tool'!D19)/('MCDA Tool'!E19-'MCDA Tool'!D19), IF('MCDA Tool'!F19=\"worse performance\",1-('MCDA Tool'!D8-'MCDA Tool'!D19)/('MCDA Tool'!E19-'MCDA Tool'!D19)))","v":false},{"$f":"IF(AND('MCDA Tool'!F19=\"better performance\",'MCDA Tool'!$C$3=\"3 alternatives\"),('MCDA Tool'!E8-'MCDA Tool'!D19)/('MCDA Tool'!E19-'MCDA Tool'!D19),IF(AND('MCDA Tool'!F19=\"worse performance\",'MCDA Tool'!$C$3=\"3 alternatives\"),1-('MCDA Tool'!E8-'MCDA Tool'!D19)/('MCDA Tool'!E19-'MCDA Tool'!D19)))","v":false}]
[{"$f":"IF(AND('MCDA Tool'!F20=\"better performance\",'MCDA Tool'!$C$3=\"3 alternatives\"),'MCDA Tool'!C9/SUM('MCDA Tool'!C9^3+'MCDA Tool'!D9^3+'MCDA Tool'!E9^3)^(1/3),IF(AND('MCDA Tool'!F20=\"worse performance\",'MCDA Tool'!$C$3=\"3 alternatives\"),(1/'MCDA Tool'!C9)/SUM((1/'MCDA Tool'!C9)^3+(1/'MCDA Tool'!D9)^3+(1/'MCDA Tool'!E9)^3)^(1/3),IF(AND('MCDA Tool'!F20=\"better performance\",'MCDA Tool'!$C$3=\"2 alternatives\"),'MCDA Tool'!C9/SUM('MCDA Tool'!C9^2+'MCDA Tool'!D9^2)^(1/2),IF(AND('MCDA Tool'!F20=\"worse performance\",'MCDA Tool'!$C$3=\"2 alternatives\"),(1/'MCDA Tool'!C9)/SUM((1/'MCDA Tool'!C9)^2+(1/'MCDA Tool'!D9)^2)^(1/2)))))","v":false},{"$f":"IF(AND('MCDA Tool'!F20=\"better performance\",'MCDA Tool'!$C$3=\"3 alternatives\"),'MCDA Tool'!D9/SUM('MCDA Tool'!C9^3+'MCDA Tool'!D9^3+'MCDA Tool'!E9^3)^(1/3),IF(AND('MCDA Tool'!F20=\"worse performance\",'MCDA Tool'!$C$3=\"3 alternatives\"),(1/'MCDA Tool'!D9)/SUM((1/'MCDA Tool'!C9)^3+(1/'MCDA Tool'!D9)^3+(1/'MCDA Tool'!E9)^3)^(1/3),IF(AND('MCDA Tool'!F20=\"better performance\",'MCDA Tool'!$C$3=\"2 alternatives\"),'MCDA Tool'!D9/SUM('MCDA Tool'!C9^2+'MCDA Tool'!D9^2)^(1/2),IF(AND('MCDA Tool'!F20=\"worse performance\",'MCDA Tool'!$C$3=\"2 alternatives\"),(1/'MCDA Tool'!D9)/SUM((1/'MCDA Tool'!C9)^2+(1/'MCDA Tool'!D9)^2)^(1/2)))))","v":false},{"$f":"IF(AND('MCDA Tool'!F20=\"better performance\",'MCDA Tool'!$C$3=\"3 alternatives\"),'MCDA Tool'!E9/SUM('MCDA Tool'!C9^3+'MCDA Tool'!D9^3+'MCDA Tool'!E9^3)^(1/3),IF(AND('MCDA Tool'!F20=\"worse performance\",'MCDA Tool'!$C$3=\"3 alternatives\"),(1/'MCDA Tool'!E9)/SUM((1/'MCDA Tool'!C9)^3+(1/'MCDA Tool'!D9)^3+(1/'MCDA Tool'!E9)^3)^(1/3)))","v":false},null,{"$f":"IF('MCDA Tool'!F20=\"better performance\",('MCDA Tool'!C9-'MCDA Tool'!D20)/('MCDA Tool'!E20-'MCDA Tool'!D20), IF('MCDA Tool'!F20=\"worse performance\",1-('MCDA Tool'!C9-'MCDA Tool'!D20)/('MCDA Tool'!E20-'MCDA Tool'!D20)))","v":false},{"$f":"IF('MCDA Tool'!F20=\"better performance\",('MCDA Tool'!D9-'MCDA Tool'!D20)/('MCDA Tool'!E20-'MCDA Tool'!D20), IF('MCDA Tool'!F20=\"worse performance\",1-('MCDA Tool'!D9-'MCDA Tool'!D20)/('MCDA Tool'!E20-'MCDA Tool'!D20)))","v":false},{"$f":"IF(AND('MCDA Tool'!F20=\"better performance\",'MCDA Tool'!$C$3=\"3 alternatives\"),('MCDA Tool'!E9-'MCDA Tool'!D20)/('MCDA Tool'!E20-'MCDA Tool'!D20),IF(AND('MCDA Tool'!F20=\"worse performance\",'MCDA Tool'!$C$3=\"3 alternatives\"),1-('MCDA Tool'!E9-'MCDA Tool'!D20)/('MCDA Tool'!E20-'MCDA Tool'!D20)))","v":false}]
[{"$f":"IF(AND('MCDA Tool'!F21=\"better performance\",'MCDA Tool'!$C$3=\"3 alternatives\"),'MCDA Tool'!C10/SUM('MCDA Tool'!C10^3+'MCDA Tool'!D10^3+'MCDA Tool'!E10^3)^(1/3),IF(AND('MCDA Tool'!F21=\"worse performance\",'MCDA Tool'!$C$3=\"3 alternatives\"),(1/'MCDA Tool'!C10)/SUM((1/'MCDA Tool'!C10)^3+(1/'MCDA Tool'!D10)^3+(1/'MCDA Tool'!E10)^3)^(1/3),IF(AND('MCDA Tool'!F21=\"better performance\",'MCDA Tool'!$C$3=\"2 alternatives\"),'MCDA Tool'!C10/SUM('MCDA Tool'!C10^2+'MCDA Tool'!D10^2)^(1/2),IF(AND('MCDA Tool'!F21=\"worse performance\",'MCDA Tool'!$C$3=\"2 alternatives\"),(1/'MCDA Tool'!C10)/SUM((1/'MCDA Tool'!C10)^2+(1/'MCDA Tool'!D10)^2)^(1/2)))))","v":false},{"$f":"IF(AND('MCDA Tool'!F21=\"better performance\",'MCDA Tool'!$C$3=\"3 alternatives\"),'MCDA Tool'!D10/SUM('MCDA Tool'!C10^3+'MCDA Tool'!D10^3+'MCDA Tool'!E10^3)^(1/3),IF(AND('MCDA Tool'!F21=\"worse performance\",'MCDA Tool'!$C$3=\"3 alternatives\"),(1/'MCDA Tool'!D10)/SUM((1/'MCDA Tool'!C10)^3+(1/'MCDA Tool'!D10)^3+(1/'MCDA Tool'!E10)^3)^(1/3),IF(AND('MCDA Tool'!F21=\"better performance\",'MCDA Tool'!$C$3=\"2 alternatives\"),'MCDA Tool'!D10/SUM('MCDA Tool'!C10^2+'MCDA Tool'!D10^2)^(1/2),IF(AND('MCDA Tool'!F21=\"worse performance\",'MCDA Tool'!$C$3=\"2 alternatives\"),(1/'MCDA Tool'!D10)/SUM((1/'MCDA Tool'!C10)^2+(1/'MCDA Tool'!D10)^2)^(1/2)))))","v":false},{"$f":"IF(AND('MCDA Tool'!F21=\"better performance\",'MCDA Tool'!$C$3=\"3 alternatives\"),'MCDA Tool'!E10/SUM('MCDA Tool'!C10^3+'MCDA Tool'!D10^3+'MCDA Tool'!E10^3)^(1/3),IF(AND('MCDA Tool'!F21=\"worse performance\",'MCDA Tool'!$C$3=\"3 alternatives\"),(1/'MCDA Tool'!E10)/SUM((1/'MCDA Tool'!C10)^3+(1/'MCDA Tool'!D10)^3+(1/'MCDA Tool'!E10)^3)^(1/3)))","v":false},null,{"$f":"IF('MCDA Tool'!F21=\"better performance\",('MCDA Tool'!C10-'MCDA Tool'!D21)/('MCDA Tool'!E21-'MCDA Tool'!D21), IF('MCDA Tool'!F21=\"worse performance\",1-('MCDA Tool'!C10-'MCDA Tool'!D21)/('MCDA Tool'!E21-'MCDA Tool'!D21)))","v":false},{"$f":"IF('MCDA Tool'!F21=\"better performance\",('MCDA Tool'!D10-'MCDA Tool'!D21)/('MCDA Tool'!E21-'MCDA Tool'!D21), IF('MCDA Tool'!F21=\"worse performance\",1-('MCDA Tool'!D10-'MCDA Tool'!D21)/('MCDA Tool'!E21-'MCDA Tool'!D21)))","v":false},{"$f":"IF(AND('MCDA Tool'!F21=\"better performance\",'MCDA Tool'!$C$3=\"3 alternatives\"),('MCDA Tool'!E10-'MCDA Tool'!D21)/('MCDA Tool'!E21-'MCDA Tool'!D21),IF(AND('MCDA Tool'!F21=\"worse performance\",'MCDA Tool'!$C$3=\"3 alternatives\"),1-('MCDA Tool'!E10-'MCDA Tool'!D21)/('MCDA Tool'!E21-'MCDA Tool'!D21)))","v":false}]
[{"$f":"IF(AND('MCDA Tool'!F22=\"better performance\",'MCDA Tool'!$C$3=\"3 alternatives\"),'MCDA Tool'!C11/SUM('MCDA Tool'!C11^3+'MCDA Tool'!D11^3+'MCDA Tool'!E11^3)^(1/3),IF(AND('MCDA Tool'!F22=\"worse performance\",'MCDA Tool'!$C$3=\"3 alternatives\"),(1/'MCDA Tool'!C11)/SUM((1/'MCDA Tool'!C11)^3+(1/'MCDA Tool'!D11)^3+(1/'MCDA Tool'!E11)^3)^(1/3),IF(AND('MCDA Tool'!F22=\"better performance\",'MCDA Tool'!$C$3=\"2 alternatives\"),'MCDA Tool'!C11/SUM('MCDA Tool'!C11^2+'MCDA Tool'!D11^2)^(1/2),IF(AND('MCDA Tool'!F22=\"worse performance\",'MCDA Tool'!$C$3=\"2 alternatives\"),(1/'MCDA Tool'!C11)/SUM((1/'MCDA Tool'!C11)^2+(1/'MCDA Tool'!D11)^2)^(1/2)))))","v":false},{"$f":"IF(AND('MCDA Tool'!F22=\"better performance\",'MCDA Tool'!$C$3=\"3 alternatives\"),'MCDA Tool'!D11/SUM('MCDA Tool'!C11^3+'MCDA Tool'!D11^3+'MCDA Tool'!E11^3)^(1/3),IF(AND('MCDA Tool'!F22=\"worse performance\",'MCDA Tool'!$C$3=\"3 alternatives\"),(1/'MCDA Tool'!D11)/SUM((1/'MCDA Tool'!C11)^3+(1/'MCDA Tool'!D11)^3+(1/'MCDA Tool'!E11)^3)^(1/3),IF(AND('MCDA Tool'!F22=\"better performance\",'MCDA Tool'!$C$3=\"2 alternatives\"),'MCDA Tool'!D11/SUM('MCDA Tool'!C11^2+'MCDA Tool'!D11^2)^(1/2),IF(AND('MCDA Tool'!F22=\"worse performance\",'MCDA Tool'!$C$3=\"2 alternatives\"),(1/'MCDA Tool'!D11)/SUM((1/'MCDA Tool'!C11)^2+(1/'MCDA Tool'!D11)^2)^(1/2)))))","v":false},{"$f":"IF(AND('MCDA Tool'!F22=\"better performance\",'MCDA Tool'!$C$3=\"3 alternatives\"),'MCDA Tool'!E11/SUM('MCDA Tool'!C11^3+'MCDA Tool'!D11^3+'MCDA Tool'!E11^3)^(1/3),IF(AND('MCDA Tool'!F22=\"worse performance\",'MCDA Tool'!$C$3=\"3 alternatives\"),(1/'MCDA Tool'!E11)/SUM((1/'MCDA Tool'!C11)^3+(1/'MCDA Tool'!D11)^3+(1/'MCDA Tool'!E11)^3)^(1/3)))","v":false},null,{"$f":"IF('MCDA Tool'!F22=\"better performance\",('MCDA Tool'!C11-'MCDA Tool'!D22)/('MCDA Tool'!E22-'MCDA Tool'!D22), IF('MCDA Tool'!F22=\"worse performance\",1-('MCDA Tool'!C11-'MCDA Tool'!D22)/('MCDA Tool'!E22-'MCDA Tool'!D22)))","v":false},{"$f":"IF('MCDA Tool'!F22=\"better performance\",('MCDA Tool'!D11-'MCDA Tool'!D22)/('MCDA Tool'!E22-'MCDA Tool'!D22), IF('MCDA Tool'!F22=\"worse performance\",1-('MCDA Tool'!D11-'MCDA Tool'!D22)/('MCDA Tool'!E22-'MCDA Tool'!D22)))","v":false},{"$f":"IF(AND('MCDA Tool'!F22=\"better performance\",'MCDA Tool'!$C$3=\"3 alternatives\"),('MCDA Tool'!E11-'MCDA Tool'!D22)/('MCDA Tool'!E22-'MCDA Tool'!D22),IF(AND('MCDA Tool'!F22=\"worse performance\",'MCDA Tool'!$C$3=\"3 alternatives\"),1-('MCDA Tool'!E11-'MCDA Tool'!D22)/('MCDA Tool'!E22-'MCDA Tool'!D22)))","v":false}]
[{"$f":"IF(AND('MCDA Tool'!F23=\"better performance\",'MCDA Tool'!$C$3=\"3 alternatives\"),'MCDA Tool'!C12/SUM('MCDA Tool'!C12^3+'MCDA Tool'!D12^3+'MCDA Tool'!E12^3)^(1/3),IF(AND('MCDA Tool'!F23=\"worse performance\",'MCDA Tool'!$C$3=\"3 alternatives\"),(1/'MCDA Tool'!C12)/SUM((1/'MCDA Tool'!C12)^3+(1/'MCDA Tool'!D12)^3+(1/'MCDA Tool'!E12)^3)^(1/3),IF(AND('MCDA Tool'!F23=\"better performance\",'MCDA Tool'!$C$3=\"2 alternatives\"),'MCDA Tool'!C12/SUM('MCDA Tool'!C12^2+'MCDA Tool'!D12^2)^(1/2),IF(AND('MCDA Tool'!F23=\"worse performance\",'MCDA Tool'!$C$3=\"2 alternatives\"),(1/'MCDA Tool'!C12)/SUM((1/'MCDA Tool'!C12)^2+(1/'MCDA Tool'!D12)^2)^(1/2)))))","v":false},{"$f":"IF(AND('MCDA Tool'!F23=\"better performance\",'MCDA Tool'!$C$3=\"3 alternatives\"),'MCDA Tool'!D12/SUM('MCDA Tool'!C12^3+'MCDA Tool'!D12^3+'MCDA Tool'!E12^3)^(1/3),IF(AND('MCDA Tool'!F23=\"worse performance\",'MCDA Tool'!$C$3=\"3 alternatives\"),(1/'MCDA Tool'!D12)/SUM((1/'MCDA Tool'!C12)^3+(1/'MCDA Tool'!D12)^3+(1/'MCDA Tool'!E12)^3)^(1/3),IF(AND('MCDA Tool'!F23=\"better performance\",'MCDA Tool'!$C$3=\"2 alternatives\"),'MCDA Tool'!D12/SUM('MCDA Tool'!C12^2+'MCDA Tool'!D12^2)^(1/2),IF(AND('MCDA Tool'!F23=\"worse performance\",'MCDA Tool'!$C$3=\"2 alternatives\"),(1/'MCDA Tool'!D12)/SUM((1/'MCDA Tool'!C12)^2+(1/'MCDA Tool'!D12)^2)^(1/2)))))","v":false},{"$f":"IF(AND('MCDA Tool'!F23=\"better performance\",'MCDA Tool'!$C$3=\"3 alternatives\"),'MCDA Tool'!E12/SUM('MCDA Tool'!C12^3+'MCDA Tool'!D12^3+'MCDA Tool'!E12^3)^(1/3),IF(AND('MCDA Tool'!F23=\"worse performance\",'MCDA Tool'!$C$3=\"3 alternatives\"),(1/'MCDA Tool'!E12)/SUM((1/'MCDA Tool'!C12)^3+(1/'MCDA Tool'!D12)^3+(1/'MCDA Tool'!E12)^3)^(1/3)))","v":false},null,{"$f":"IF('MCDA Tool'!F23=\"better performance\",('MCDA Tool'!C12-'MCDA Tool'!D23)/('MCDA Tool'!E23-'MCDA Tool'!D23), IF('MCDA Tool'!F23=\"worse performance\",1-('MCDA Tool'!C12-'MCDA Tool'!D23)/('MCDA Tool'!E23-'MCDA Tool'!D23)))","v":false},{"$f":"IF('MCDA Tool'!F23=\"better performance\",('MCDA Tool'!D12-'MCDA Tool'!D23)/('MCDA Tool'!E23-'MCDA Tool'!D23), IF('MCDA Tool'!F23=\"worse performance\",1-('MCDA Tool'!D12-'MCDA Tool'!D23)/('MCDA Tool'!E23-'MCDA Tool'!D23)))","v":false},{"$f":"IF(AND('MCDA Tool'!F23=\"better performance\",'MCDA Tool'!$C$3=\"3 alternatives\"),('MCDA Tool'!E12-'MCDA Tool'!D23)/('MCDA Tool'!E23-'MCDA Tool'!D23),IF(AND('MCDA Tool'!F23=\"worse performance\",'MCDA Tool'!$C$3=\"3 alternatives\"),1-('MCDA Tool'!E12-'MCDA Tool'!D23)/('MCDA Tool'!E23-'MCDA Tool'!D23)))","v":false}]
[{"$f":"IF(AND('MCDA Tool'!F24=\"better performance\",'MCDA Tool'!$C$3=\"3 alternatives\"),'MCDA Tool'!C13/SUM('MCDA Tool'!C13^3+'MCDA Tool'!D13^3+'MCDA Tool'!E13^3)^(1/3),IF(AND('MCDA Tool'!F24=\"worse performance\",'MCDA Tool'!$C$3=\"3 alternatives\"),(1/'MCDA Tool'!C13)/SUM((1/'MCDA Tool'!C13)^3+(1/'MCDA Tool'!D13)^3+(1/'MCDA Tool'!E13)^3)^(1/3),IF(AND('MCDA Tool'!F24=\"better performance\",'MCDA Tool'!$C$3=\"2 alternatives\"),'MCDA Tool'!C13/SUM('MCDA Tool'!C13^2+'MCDA Tool'!D13^2)^(1/2),IF(AND('MCDA Tool'!F24=\"worse performance\",'MCDA Tool'!$C$3=\"2 alternatives\"),(1/'MCDA Tool'!C13)/SUM((1/'MCDA Tool'!C13)^2+(1/'MCDA Tool'!D13)^2)^(1/2)))))","v":false},{"$f":"IF(AND('MCDA Tool'!F24=\"better performance\",'MCDA Tool'!$C$3=\"3 alternatives\"),'MCDA Tool'!D13/SUM('MCDA Tool'!C13^3+'MCDA Tool'!D13^3+'MCDA Tool'!E13^3)^(1/3),IF(AND('MCDA Tool'!F24=\"worse performance\",'MCDA Tool'!$C$3=\"3 alternatives\"),(1/'MCDA Tool'!D13)/SUM((1/'MCDA Tool'!C13)^3+(1/'MCDA Tool'!D13)^3+(1/'MCDA Tool'!E13)^3)^(1/3),IF(AND('MCDA Tool'!F24=\"better performance\",'MCDA Tool'!$C$3=\"2 alternatives\"),'MCDA Tool'!D13/SUM('MCDA Tool'!C13^2+'MCDA Tool'!D13^2)^(1/2),IF(AND('MCDA Tool'!F24=\"worse performance\",'MCDA Tool'!$C$3=\"2 alternatives\"),(1/'MCDA Tool'!D13)/SUM((1/'MCDA Tool'!C13)^2+(1/'MCDA Tool'!D13)^2)^(1/2)))))","v":false},{"$f":"IF(AND('MCDA Tool'!F24=\"better performance\",'MCDA Tool'!$C$3=\"3 alternatives\"),'MCDA Tool'!E13/SUM('MCDA Tool'!C13^3+'MCDA Tool'!D13^3+'MCDA Tool'!E13^3)^(1/3),IF(AND('MCDA Tool'!F24=\"worse performance\",'MCDA Tool'!$C$3=\"3 alternatives\"),(1/'MCDA Tool'!E13)/SUM((1/'MCDA Tool'!C13)^3+(1/'MCDA Tool'!D13)^3+(1/'MCDA Tool'!E13)^3)^(1/3)))","v":false},null,{"$f":"IF('MCDA Tool'!F24=\"better performance\",('MCDA Tool'!C13-'MCDA Tool'!D24)/('MCDA Tool'!E24-'MCDA Tool'!D24), IF('MCDA Tool'!F24=\"worse performance\",1-('MCDA Tool'!C13-'MCDA Tool'!D24)/('MCDA Tool'!E24-'MCDA Tool'!D24)))","v":false},{"$f":"IF('MCDA Tool'!F24=\"better performance\",('MCDA Tool'!D13-'MCDA Tool'!D24)/('MCDA Tool'!E24-'MCDA Tool'!D24), IF('MCDA Tool'!F24=\"worse performance\",1-('MCDA Tool'!D13-'MCDA Tool'!D24)/('MCDA Tool'!E24-'MCDA Tool'!D24)))","v":false},{"$f":"IF(AND('MCDA Tool'!F24=\"better performance\",'MCDA Tool'!$C$3=\"3 alternatives\"),('MCDA Tool'!E13-'MCDA Tool'!D24)/('MCDA Tool'!E24-'MCDA Tool'!D24),IF(AND('MCDA Tool'!F24=\"worse performance\",'MCDA Tool'!$C$3=\"3 alternatives\"),1-('MCDA Tool'!E13-'MCDA Tool'!D24)/('MCDA Tool'!E24-'MCDA Tool'!D24)))","v":false}]
[null,{"$f":"IF(AND('MCDA Tool'!F25=\"better performance\",'MCDA Tool'!$C$3=\"3 alternatives\"),'MCDA Tool'!D14/SUM('MCDA Tool'!C14^3+'MCDA Tool'!D14^3+'MCDA Tool'!E14^3)^(1/3),IF(AND('MCDA Tool'!F25=\"worse performance\",'MCDA Tool'!$C$3=\"3 alternatives\"),(1/'MCDA Tool'!D14)/SUM((1/'MCDA Tool'!C14)^3+(1/'MCDA Tool'!D14)^3+(1/'MCDA Tool'!E14)^3)^(1/3),IF(AND('MCDA Tool'!F25=\"better performance\",'MCDA Tool'!$C$3=\"2 alternatives\"),'MCDA Tool'!D14/SUM('MCDA Tool'!C14^2+'MCDA Tool'!D14^2)^(1/2),IF(AND('MCDA Tool'!F25=\"worse performance\",'MCDA Tool'!$C$3=\"2 alternatives\"),(1/'MCDA Tool'!D14)/SUM((1/'MCDA Tool'!C14)^2+(1/'MCDA Tool'!D14)^2)^(1/2)))))","v":false},{"$f":"IF(AND('MCDA Tool'!F25=\"better performance\",'MCDA Tool'!$C$3=\"3 alternatives\"),'MCDA Tool'!E14/SUM('MCDA Tool'!C14^3+'MCDA Tool'!D14^3+'MCDA Tool'!E14^3)^(1/3),IF(AND('MCDA Tool'!F25=\"worse performance\",'MCDA Tool'!$C$3=\"3 alternatives\"),(1/'MCDA Tool'!E14)/SUM((1/'MCDA Tool'!C14)^3+(1/'MCDA Tool'!D14)^3+(1/'MCDA Tool'!E14)^3)^(1/3)))","v":false},null,{"$f":"IF('MCDA Tool'!F25=\"better performance\",('MCDA Tool'!C14-'MCDA Tool'!D25)/('MCDA Tool'!E25-'MCDA Tool'!D25), IF('MCDA Tool'!F25=\"worse performance\",1-('MCDA Tool'!C14-'MCDA Tool'!D25)/('MCDA Tool'!E25-'MCDA Tool'!D25)))","v":false},{"$f":"IF('MCDA Tool'!F25=\"better performance\",('MCDA Tool'!D14-'MCDA Tool'!D25)/('MCDA Tool'!E25-'MCDA Tool'!D25), IF('MCDA Tool'!F25=\"worse performance\",1-('MCDA Tool'!D14-'MCDA Tool'!D25)/('MCDA Tool'!E25-'MCDA Tool'!D25)))","v":false},{"$f":"IF(AND('MCDA Tool'!F25=\"better performance\",'MCDA Tool'!$C$3=\"3 alternatives\"),('MCDA Tool'!E14-'MCDA Tool'!D25)/('MCDA Tool'!E25-'MCDA Tool'!D25),IF(AND('MCDA Tool'!F25=\"worse performance\",'MCDA Tool'!$C$3=\"3 alternatives\"),1-('MCDA Tool'!E14-'MCDA Tool'!D25)/('MCDA Tool'!E25-'MCDA Tool'!D25)))","v":false}]
[{"$f":"IF(AND('MCDA Tool'!F26=\"better performance\",'MCDA Tool'!$C$3=\"3 alternatives\"),'MCDA Tool'!C15/SUM('MCDA Tool'!C15^3+'MCDA Tool'!D15^3+'MCDA Tool'!E15^3)^(1/3),IF(AND('MCDA Tool'!F26=\"worse performance\",'MCDA Tool'!$C$3=\"3 alternatives\"),(1/'MCDA Tool'!C15)/SUM((1/'MCDA Tool'!C15)^3+(1/'MCDA Tool'!D15)^3+(1/'MCDA Tool'!E15)^3)^(1/3),IF(AND('MCDA Tool'!F26=\"better performance\",'MCDA Tool'!$C$3=\"2 alternatives\"),'MCDA Tool'!C15/SUM('MCDA Tool'!C15^2+'MCDA Tool'!D15^2)^(1/2),IF(AND('MCDA Tool'!F26=\"worse performance\",'MCDA Tool'!$C$3=\"2 alternatives\"),(1/'MCDA Tool'!C15)/SUM((1/'MCDA Tool'!C15)^2+(1/'MCDA Tool'!D15)^2)^(1/2)))))","v":false},{"$f":"IF(AND('MCDA Tool'!F26=\"better performance\",'MCDA Tool'!$C$3=\"3 alternatives\"),'MCDA Tool'!D15/SUM('MCDA Tool'!C15^3+'MCDA Tool'!D15^3+'MCDA Tool'!E15^3)^(1/3),IF(AND('MCDA Tool'!F26=\"worse performance\",'MCDA Tool'!D22=\"3 alternatives\"),(1/'MCDA Tool'!D15)/SUM((1/'MCDA Tool'!C15)^3+(1/'MCDA Tool'!D15)^3+(1/'MCDA Tool'!E15)^3)^(1/3),IF(AND('MCDA Tool'!F26=\"better performance\",'MCDA Tool'!$C$3=\"2 alternatives\"),'MCDA Tool'!D15/SUM('MCDA Tool'!C15^2+'MCDA Tool'!D15^2)^(1/2),IF(AND('MCDA Tool'!F26=\"worse performance\",'MCDA Tool'!$C$3=\"2 alternatives\"),(1/'MCDA Tool'!D15)/SUM((1/'MCDA Tool'!C15)^2+(1/'MCDA Tool'!D15)^2)^(1/2)))))","v":false},{"$f":"IF(AND('MCDA Tool'!F26=\"better performance\",'MCDA Tool'!$C$3=\"3 alternatives\"),'MCDA Tool'!E15/SUM('MCDA Tool'!C15^3+'MCDA Tool'!D15^3+'MCDA Tool'!E15^3)^(1/3),IF(AND('MCDA Tool'!F26=\"worse performance\",'MCDA Tool'!$C$3=\"3 alternatives\"),(1/'MCDA Tool'!E15)/SUM((1/'MCDA Tool'!C15)^3+(1/'MCDA Tool'!D15)^3+(1/'MCDA Tool'!E15)^3)^(1/3)))","v":false},null,{"$f":"IF('MCDA Tool'!F26=\"better performance\",('MCDA Tool'!C15-'MCDA Tool'!D26)/('MCDA Tool'!E26-'MCDA Tool'!D26), IF('MCDA Tool'!F26=\"worse performance\",1-('MCDA Tool'!C15-'MCDA Tool'!D26)/('MCDA Tool'!E26-'MCDA Tool'!D26)))","v":false},{"$f":"IF('MCDA Tool'!F26=\"better performance\",('MCDA Tool'!D15-'MCDA Tool'!D26)/('MCDA Tool'!E26-'MCDA Tool'!D26), IF('MCDA Tool'!F26=\"worse performance\",1-('MCDA Tool'!D15-'MCDA Tool'!D26)/('MCDA Tool'!E26-'MCDA Tool'!D26)))","v":false},{"$f":"IF(AND('MCDA Tool'!F26=\"better performance\",'MCDA Tool'!$C$3=\"3 alternatives\"),('MCDA Tool'!E15-'MCDA Tool'!D26)/('MCDA Tool'!E26-'MCDA Tool'!D26),IF(AND('MCDA Tool'!F26=\"worse performance\",'MCDA Tool'!$C$3=\"3 alternatives\"),1-('MCDA Tool'!E15-'MCDA Tool'!D26)/('MCDA Tool'!E26-'MCDA Tool'!D26)))","v":false}]

{"sheet":"results MCDA tool","index":3,"n_rows":36,"n_cols":16,"rows_kept":36,"cut":false,"hidden":true,"merged":[[2,0,2,1],[2,2,2,3],[0,0,0,11],[4,2,4,3],[4,0,4,1],[3,0,3,11],[21,13,21,15],[32,7,32,9],[32,10,32,12],[32,13,32,15],[7,1,7,3],[9,4,16,4],[21,1,21,3],[21,4,21,6],[32,1,32,3],[20,1,20,15],[32,4,32,6],[21,7,21,9],[21,10,21,12],[7,5,7,9],[8,10,16,10],[38,2,38,3],[38,6,38,7],[38,4,38,5],[38,8,38,9],[38,10,38,11]]}
["MCDA TOOL"]
["INPUT"]
["1: Select your standardization method",null,"Relative standardisation"]
[]
["2: Select your country from the list ",null,"Germany"]
[]
[]
[null,"STANDARDIZED PERFORMANCE SCORES",null,null,null,"WEIGHTS"]
[null,{"$f":"IF(ISTEXT($G$5),$G$5, \"A\")","v":"A"},{"$f":"IF(ISTEXT($I$5),$I$5, \"B\")","v":"B"},{"$f":"IF(ISTEXT($K$5),$K$5, \"C\")","v":"C"},null,"PATIENTS","PARTNERS","PROFESSIONALS","PAYERS","POLICY MAKERS","="]
["Physical functioning",{"$f":"IF($C$3=\"Normalisation\",STD!E4,IF($C$3=\"Relative standardisation\",STD!A4))","v":false},{"$f":"IF($C$3=\"Normalisation\",STD!F4,IF($C$3=\"Relative standardisation\",STD!B4))","v":false},{"$f":"IF($C$3=\"Normalisation\",STD!G4,IF($C$3=\"Relative standardisation\",STD!C4))","v":false},"X",{"$f":"IF('results MCDA tool'!$C$5=\"Austria\",Weights!B13,IF('results MCDA tool'!$C$5=\"Croatia\",Weights!H13,IF('results MCDA tool'!$C$5=\"Germany\",Weights!N13,IF('results MCDA tool'!$C$5=\"Hungary\",Weights!T13,IF('results MCDA tool'!$C$5=\"The Netherlands\",Weights!Z13,IF('results MCDA tool'!$C$5=\"Norway\",Weights!AF13,IF('results MCDA tool'!$C$5=\"Spain\",Weights!AL13,IF('results MCDA tool'!$C$5=\"UK\",Weights!AR13,IF('results MCDA tool'!$C$5=\"Mean all countries\",Weights!AW13)))))))))","v":{"$error":"#DIV/0!"}},{"$f":"IF('results MCDA tool'!$C$5=\"Austria\",Weights!C13,IF('results MCDA tool'!$C$5=\"Croatia\",Weights!I13,IF('results MCDA tool'!$C$5=\"Germany\",Weights!O13,IF('results MCDA tool'!$C$5=\"Hungary\",Weights!U13,IF('results MCDA tool'!$C$5=\"The Netherlands\",Weights!AA13,IF('results MCDA tool'!$C$5=\"Norway\",Weights!AG13,IF('results MCDA tool'!$C$5=\"Spain\",Weights!AM13,IF('results MCDA tool'!$C$5=\"UK\",Weights!AS13,IF('results MCDA tool'!$C$5=\"Mean all countries\",Weights!AX13)))))))))","v":{"$error":"#DIV/0!"}},{"$f":"IF('results MCDA tool'!$C$5=\"Austria\",Weights!D13,IF('results MCDA tool'!$C$5=\"Croatia\",Weights!J13,IF('results MCDA tool'!$C$5=\"Germany\",Weights!P13,IF('results MCDA tool'!$C$5=\"Hungary\",Weights!V13,IF('results MCDA tool'!$C$5=\"The Netherlands\",Weights!AB13,IF('results MCDA tool'!$C$5=\"Norway\",Weights!AH13,IF('results MCDA tool'!$C$5=\"Spain\",Weights!AN13,IF('results MCDA tool'!$C$5=\"UK\",Weights!AT13,IF('results MCDA tool'!$C$5=\"Mean all countries\",Weights!AY13)))))))))","v":{"$error":"#DIV/0!"}},{"$f":"IF('results MCDA tool'!$C$5=\"Austria\",Weights!E13,IF('results MCDA tool'!$C$5=\"Croatia\",Weights!K13,IF('results MCDA tool'!$C$5=\"Germany\",Weights!Q13,IF('results MCDA tool'!$C$5=\"Hungary\",Weights!W13,IF('results MCDA tool'!$C$5=\"The Netherlands\",Weights!AC13,IF('results MCDA tool'!$C$5=\"Norway\",Weights!AI13,IF('results MCDA tool'!$C$5=\"Spain\",Weights!AO13,IF('results MCDA tool'!$C$5=\"UK\",Weights!AU13,IF('results MCDA tool'!$C$5=\"Mean all countries\",Weights!AZ13)))))))))","v":0},{"$f":"IF('results MCDA tool'!$C$5=\"Austria\",Weights!F13,IF('results MCDA tool'!$C$5=\"Croatia\",Weights!L13,IF('results MCDA tool'!$C$5=\"Germany\",Weights!R13,IF('results MCDA tool'!$C$5=\"Hungary\",Weights!X13,IF('results MCDA tool'!$C$5=\"The Netherlands\",Weights!AD13,IF('results MCDA tool'!$C$5=\"Norway\",Weights!AJ13,IF('results MCDA tool'!$C$5=\"Spain\",Weights!AP13,IF('results MCDA tool'!$C$5=\"UK\",Weights!AV13,IF('results MCDA tool'!$C$5=\"Mean all countries\",Weights!BA13)))))))))","v":0}]
["Psychological well being",{"$f":"IF($C$3=\"Normalisation\",STD!E5,IF($C$3=\"Relative standardisation\",STD!A5))","v":false},{"$f":"IF($C$3=\"Normalisation\",STD!F5,IF($C$3=\"Relative standardisation\",STD!B5))","v":false},{"$f":"IF($C$3=\"Normalisation\",STD!G5,IF($C$3=\"Relative standardisation\",STD!C5))","v":false},null,{"$f":"IF('results MCDA tool'!$C$5=\"Austria\",Weights!B14,IF('results MCDA tool'!$C$5=\"Croatia\",Weights!H14,IF('results MCDA tool'!$C$5=\"Germany\",Weights!N14,IF('results MCDA tool'!$C$5=\"Hungary\",Weights!T14,IF('results MCDA tool'!$C$5=\"The Netherlands\",Weights!Z14,IF('results MCDA tool'!$C$5=\"Norway\",Weights!AF14,IF('results MCDA tool'!$C$5=\"Spain\",Weights!AL14,IF('results MCDA tool'!$C$5=\"UK\",Weights!AR14,IF('results MCDA tool'!$C$5=\"Mean all countries\",Weights!AW14)))))))))","v":{"$error":"#DIV/0!"}},{"$f":"IF('results MCDA tool'!$C$5=\"Austria\",Weights!C14,IF('results MCDA tool'!$C$5=\"Croatia\",Weights!I14,IF('results MCDA tool'!$C$5=\"Germany\",Weights!O14,IF('results MCDA tool'!$C$5=\"Hungary\",Weights!U14,IF('results MCDA tool'!$C$5=\"The Netherlands\",Weights!AA14,IF('results MCDA tool'!$C$5=\"Norway\",Weights!AG14,IF('results MCDA tool'!$C$5=\"Spain\",Weights!AM14,IF('results MCDA tool'!$C$5=\"UK\",Weights!AS14,IF('results MCDA tool'!$C$5=\"Mean all countries\",Weights!AX14)))))))))","v":{"$error":"#DIV/0!"}},{"$f":"IF('results MCDA tool'!$C$5=\"Austria\",Weights!D14,IF('results MCDA tool'!$C$5=\"Croatia\",Weights!J14,IF('results MCDA tool'!$C$5=\"Germany\",Weights!P14,IF('results MCDA tool'!$C$5=\"Hungary\",Weights!V14,IF('results MCDA tool'!$C$5=\"The Netherlands\",Weights!AB14,IF('results MCDA tool'!$C$5=\"Norway\",Weights!AH14,IF('results MCDA tool'!$C$5=\"Spain\",Weights!AN14,IF('results MCDA tool'!$C$5=\"UK\",Weights!AT14,IF('results MCDA tool'!$C$5=\"Mean all countries\",Weights!AY14)))))))))","v":{"$error":"#DIV/0!"}},{"$f":"IF('results MCDA tool'!$C$5=\"Austria\",Weights!E14,IF('results MCDA tool'!$C$5=\"Croatia\",Weights!K14,IF('results MCDA tool'!$C$5=\"Germany\",Weights!Q14,IF('results MCDA tool'!$C$5=\"Hungary\",Weights!W14,IF('results MCDA tool'!$C$5=\"The Netherlands\",Weights!AC14,IF('results MCDA tool'!$C$5=\"Norway\",Weights!AI14,IF('results MCDA tool'!$C$5=\"Spain\",Weights!AO14,IF('results MCDA tool'!$C$5=\"UK\",Weights!AU14,IF('results MCDA tool'!$C$5=\"Mean all countries\",Weights!AZ14)))))))))","v":0},{"$f":"IF('results MCDA tool'!$C$5=\"Austria\",Weights!F14,IF('results MCDA tool'!$C$5=\"Croatia\",Weights!L14,IF('results MCDA tool'!$C$5=\"Germany\",Weights!R14,IF('results MCDA tool'!$C$5=\"Hungary\",Weights!X14,IF('results MCDA tool'!$C$5=\"The Netherlands\",Weights!AD14,IF('results MCDA tool'!$C$5=\"Norway\",Weights!AJ14,IF('results MCDA tool'!$C$5=\"Spain\",Weights!AP14,IF('results MCDA tool'!$C$5=\"UK\",Weights!AV14,IF('results MCDA tool'!$C$5=\"Mean all countries\",Weights!BA14)))))))))","v":0}]
["Social relationships & participation",{"$f":"IF($C$3=\"Normalisation\",STD!E6,IF($C$3=\"Relative standardisation\",STD!A6))","v":false},{"$f":"IF($C$3=\"Normalisation\",STD!F6,IF($C$3=\"Relative standardisation\",STD!B6))","v":false},{"$f":"IF($C$3=\"Normalisation\",STD!G6,IF($C$3=\"Relative standardisation\",STD!C6))","v":false},null,{"$f":"IF('results MCDA tool'!$C$5=\"Austria\",Weights!B15,IF('results MCDA tool'!$C$5=\"Croatia\",Weights!H15,IF('results MCDA tool'!$C$5=\"Germany\",Weights!N15,IF('results MCDA tool'!$C$5=\"Hungary\",Weights!T15,IF('results MCDA tool'!$C$5=\"The Netherlands\",Weights!Z15,IF('results MCDA tool'!$C$5=\"Norway\",Weights!AF15,IF('results MCDA tool'!$C$5=\"Spain\",Weights!AL15,IF('results MCDA tool'!$C$5=\"UK\",Weights!AR15,IF('results MCDA tool'!$C$5=\"Mean all countries\",Weights!AW15)))))))))","v":{"$error":"#DIV/0!"}},{"$f":"IF('results MCDA tool'!$C$5=\"Austria\",Weights!C15,IF('results MCDA tool'!$C$5=\"Croatia\",Weights!I15,IF('results MCDA tool'!$C$5=\"Germany\",Weights!O15,IF('results MCDA tool'!$C$5=\"Hungary\",Weights!U15,IF('results MCDA tool'!$C$5=\"The Netherlands\",Weights!AA15,IF('results MCDA tool'!$C$5=\"Norway\",Weights!AG15,IF('results MCDA tool'!$C$5=\"Spain\",Weights!AM15,IF('results MCDA tool'!$C$5=\"UK\",Weights!AS15,IF('results MCDA tool'!$C$5=\"Mean all countries\",Weights!AX15)))))))))","v":{"$error":"#DIV/0!"}},{"$f":"IF('results MCDA tool'!$C$5=\"Austria\",Weights!D15,IF('results MCDA tool'!$C$5=\"Croatia\",Weights!J15,IF('results MCDA tool'!$C$5=\"Germany\",Weights!P15,IF('results MCDA tool'!$C$5=\"Hungary\",Weights!V15,IF('results MCDA tool'!$C$5=\"The Netherlands\",Weights!AB15,IF('results MCDA tool'!$C$5=\"Norway\",Weights!AH15,IF('results MCDA tool'!$C$5=\"Spain\",Weights!AN15,IF('results MCDA tool'!$C$5=\"UK\",Weights!AT15,IF('results MCDA tool'!$C$5=\"Mean all countries\",Weights!AY15)))))))))","v":{"$error":"#DIV/0!"}},{"$f":"IF('results MCDA tool'!$C$5=\"Austria\",Weights!E15,IF('results MCDA tool'!$C$5=\"Croatia\",Weights!K15,IF('results MCDA tool'!$C$5=\"Germany\",Weights!Q15,IF('results MCDA tool'!$C$5=\"Hungary\",Weights!W15,IF('results MCDA tool'!$C$5=\"The Netherlands\",Weights!AC15,IF('results MCDA tool'!$C$5=\"Norway\",Weights!AI15,IF('results MCDA tool'!$C$5=\"Spain\",Weights!AO15,IF('results MCDA tool'!$C$5=\"UK\",Weights!AU15,IF('results MCDA tool'!$C$5=\"Mean all countries\",Weights!AZ15)))))))))","v":0},{"$f":"IF('results MCDA tool'!$C$5=\"Austria\",Weights!F15,IF('results MCDA tool'!$C$5=\"Croatia\",Weights!L15,IF('results MCDA tool'!$C$5=\"Germany\",Weights!R15,IF('results MCDA tool'!$C$5=\"Hungary\",Weights!X15,IF('results MCDA tool'!$C$5=\"The Netherlands\",Weights!AD15,IF('results MCDA tool'!$C$5=\"Norway\",Weights!AJ15,IF('results MCDA tool'!$C$5=\"Spain\",Weights!AP15,IF('results MCDA tool'!$C$5=\"UK\",Weights!AV15,IF('results MCDA tool'!$C$5=\"Mean all countries\",Weights!BA15)))))))))","v":0}]
["Enjoyment of life",{"$f":"IF($C$3=\"Normalisation\",STD!E7,IF($C$3=\"Relative standardisation\",STD!A7))","v":false},{"$f":"IF($C$3=\"Normalisation\",STD!F7,IF($C$3=\"Relative standardisation\",STD!B7))","v":false},{"$f":"IF($C$3=\"Normalisation\",STD!G7,IF($C$3=\"Relative standardisation\",STD!C7))","v":false},null,{"$f":"IF('results MCDA tool'!$C$5=\"Austria\",Weights!B16,IF('results MCDA tool'!$C$5=\"Croatia\",Weights!H16,IF('results MCDA tool'!$C$5=\"Germany\",Weights!N16,IF('results MCDA tool'!$C$5=\"Hungary\",Weights!T16,IF('results MCDA tool'!$C$5=\"The Netherlands\",Weights!Z16,IF('results MCDA tool'!$C$5=\"Norway\",Weights!AF16,IF('results MCDA tool'!$C$5=\"Spain\",Weights!AL16,IF('results MCDA tool'!$C$5=\"UK\",Weights!AR16,IF('results MCDA tool'!$C$5=\"Mean all countries\",Weights!AW16)))))))))","v":{"$error":"#DIV/0!"}},{"$f":"IF('results MCDA tool'!$C$5=\"Austria\",Weights!C16,IF('results MCDA tool'!$C$5=\"Croatia\",Weights!I16,IF('results MCDA tool'!$C$5=\"Germany\",Weights!O16,IF('results MCDA tool'!$C$5=\"Hungary\",Weights!U16,IF('results MCDA tool'!$C$5=\"The Netherlands\",Weights!AA16,IF('results MCDA tool'!$C$5=\"Norway\",Weights!AG16,IF('results MCDA tool'!$C$5=\"Spain\",Weights!AM16,IF('results MCDA tool'!$C$5=\"UK\",Weights!AS16,IF('results MCDA tool'!$C$5=\"Mean all countries\",Weights!AX16)))))))))","v":{"$error":"#DIV/0!"}},{"$f":"IF('results MCDA tool'!$C$5=\"Austria\",Weights!D16,IF('results MCDA tool'!$C$5=\"Croatia\",Weights!J16,IF('results MCDA tool'!$C$5=\"Germany\",Weights!P16,IF('results MCDA tool'!$C$5=\"Hungary\",Weights!V16,IF('results MCDA tool'!$C$5=\"The Netherlands\",Weights!AB16,IF('results MCDA tool'!$C$5=\"Norway\",Weights!AH16,IF('results MCDA tool'!$C$5=\"Spain\",Weights!AN16,IF('results MCDA tool'!$C$5=\"UK\",Weights!AT16,IF('results MCDA tool'!$C$5=\"Mean all countries\",Weights!AY16)))))))))","v":{"$error":"#DIV/0!"}},{"$f":"IF('results MCDA tool'!$C$5=\"Austria\",Weights!E16,IF('results MCDA tool'!$C$5=\"Croatia\",Weights!K16,IF('results MCDA tool'!$C$5=\"Germany\",Weights!Q16,IF('results MCDA tool'!$C$5=\"Hungary\",Weights!W16,IF('results MCDA tool'!$C$5=\"The Netherlands\",Weights!AC16,IF('results MCDA tool'!$C$5=\"Norway\",Weights!AI16,IF('results MCDA tool'!$C$5=\"Spain\",Weights!AO16,IF('results MCDA tool'!$C$5=\"UK\",Weights!AU16,IF('results MCDA tool'!$C$5=\"Mean all countries\",Weights!AZ16)))))))))","v":0},{"$f":"IF('results MCDA tool'!$C$5=\"Austria\",Weights!F16,IF('results MCDA tool'!$C$5=\"Croatia\",Weights!L16,IF('results MCDA tool'!$C$5=\"Germany\",Weights!R16,IF('results MCDA tool'!$C$5=\"Hungary\",Weights!X16,IF('results MCDA tool'!$C$5=\"The Netherlands\",Weights!AD16,IF('results MCDA tool'!$C$5=\"Norway\",Weights!AJ16,IF('results MCDA tool'!$C$5=\"Spain\",Weights!AP16,IF('results MCDA tool'!$C$5=\"UK\",Weights!AV16,IF('results MCDA tool'!$C$5=\"Mean all countries\",Weights!BA16)))))))))","v":0}]
["Resilience",{"$f":"IF($C$3=\"Normalisation\",STD!E8,IF($C$3=\"Relative standardisation\",STD!A8))","v":false},{"$f":"IF($C$3=\"Normalisation\",STD!F8,IF($C$3=\"Relative standardisation\",STD!B8))","v":false},{"$f":"IF($C$3=\"Normalisation\",STD!G8,IF($C$3=\"Relative standardisation\",STD!C8))","v":false},null,{"$f":"IF('results MCDA tool'!$C$5=\"Austria\",Weights!B17,IF('results MCDA tool'!$C$5=\"Croatia\",Weights!H17,IF('results MCDA tool'!$C$5=\"Germany\",Weights!N17,IF('results MCDA tool'!$C$5=\"Hungary\",Weights!T17,IF('results MCDA tool'!$C$5=\"The Netherlands\",Weights!Z17,IF('results MCDA tool'!$C$5=\"Norway\",Weights!AF17,IF('results MCDA tool'!$C$5=\"Spain\",Weights!AL17,IF('results MCDA tool'!$C$5=\"UK\",Weights!AR17,IF('results MCDA tool'!$C$5=\"Mean all countries\",Weights!AW17)))))))))","v":{"$error":"#DIV/0!"}},{"$f":"IF('results MCDA tool'!$C$5=\"Austria\",Weights!C17,IF('results MCDA tool'!$C$5=\"Croatia\",Weights!I17,IF('results MCDA tool'!$C$5=\"Germany\",Weights!O17,IF('results MCDA tool'!$C$5=\"Hungary\",Weights!U17,IF('results MCDA tool'!$C$5=\"The Netherlands\",Weights!AA17,IF('results MCDA tool'!$C$5=\"Norway\",Weights!AG17,IF('results MCDA tool'!$C$5=\"Spain\",Weights!AM17,IF('results MCDA tool'!$C$5=\"UK\",Weights!AS17,IF('results MCDA tool'!$C$5=\"Mean all countries\",Weights!AX17)))))))))","v":{"$error":"#DIV/0!"}},{"$f":"IF('results MCDA tool'!$C$5=\"Austria\",Weights!D17,IF('results MCDA tool'!$C$5=\"Croatia\",Weights!J17,IF('results MCDA tool'!$C$5=\"Germany\",Weights!P17,IF('results MCDA tool'!$C$5=\"Hungary\",Weights!V17,IF('results MCDA tool'!$C$5=\"The Netherlands\",Weights!AB17,IF('results MCDA tool'!$C$5=\"Norway\",Weights!AH17,IF('results MCDA tool'!$C$5=\"Spain\",Weights!AN17,IF('results MCDA tool'!$C$5=\"UK\",Weights!AT17,IF('results MCDA tool'!$C$5=\"Mean all countries\",Weights!AY17)))))))))","v":{"$error":"#DIV/0!"}},{"$f":"IF('results MCDA tool'!$C$5=\"Austria\",Weights!E17,IF('results MCDA tool'!$C$5=\"Croatia\",Weights!K17,IF('results MCDA tool'!$C$5=\"Germany\",Weights!Q17,IF('results MCDA tool'!$C$5=\"Hungary\",Weights!W17,IF('results MCDA tool'!$C$5=\"The Netherlands\",Weights!AC17,IF('results MCDA tool'!$C$5=\"Norway\",Weights!AI17,IF('results MCDA tool'!$C$5=\"Spain\",Weights!AO17,IF('results MCDA tool'!$C$5=\"UK\",Weights!AU17,IF('results MCDA tool'!$C$5=\"Mean all countries\",Weights!AZ17)))))))))","v":0},{"$f":"IF('results MCDA tool'!$C$5=\"Austria\",Weights!F17,IF('results MCDA tool'!$C$5=\"Croatia\",Weights!L17,IF('results MCDA tool'!$C$5=\"Germany\",Weights!R17,IF('results MCDA tool'!$C$5=\"Hungary\",Weights!X17,IF('results MCDA tool'!$C$5=\"The Netherlands\",Weights!AD17,IF('results MCDA tool'!$C$5=\"Norway\",Weights!AJ17,IF('results MCDA tool'!$C$5=\"Spain\",Weights!AP17,IF('results MCDA tool'!$C$5=\"UK\",Weights!AV17,IF('results MCDA tool'!$C$5=\"Mean all countries\",Weights!BA17)))))))))","v":0}]
["Person-centeredness",{"$f":"IF($C$3=\"Normalisation\",STD!E9,IF($C$3=\"Relative standardisation\",STD!A9))","v":false},{"$f":"IF($C$3=\"Normalisation\",STD!F9,IF($C$3=\"Relative standardisation\",STD!B9))","v":false},{"$f":"IF($C$3=\"Normalisation\",STD!G9,IF($C$3=\"Relative standardisation\",STD!C9))","v":false},null,{"$f":"IF('results MCDA tool'!$C$5=\"Austria\",Weights!B18,IF('results MCDA tool'!$C$5=\"Croatia\",Weights!H18,IF('results MCDA tool'!$C$5=\"Germany\",Weights!N18,IF('results MCDA tool'!$C$5=\"Hungary\",Weights!T18,IF('results MCDA tool'!$C$5=\"The Netherlands\",Weights!Z18,IF('results MCDA tool'!$C$5=\"Norway\",Weights!AF18,IF('results MCDA tool'!$C$5=\"Spain\",Weights!AL18,IF('results MCDA tool'!$C$5=\"UK\",Weights!AR18,IF('results MCDA tool'!$C$5=\"Mean all countries\",Weights!AW18)))))))))","v":{"$error":"#DIV/0!"}},{"$f":"IF('results MCDA tool'!$C$5=\"Austria\",Weights!C18,IF('results MCDA tool'!$C$5=\"Croatia\",Weights!I18,IF('results MCDA tool'!$C$5=\"Germany\",Weights!O18,IF('results MCDA tool'!$C$5=\"Hungary\",Weights!U18,IF('results MCDA tool'!$C$5=\"The Netherlands\",Weights!AA18,IF('results MCDA tool'!$C$5=\"Norway\",Weights!AG18,IF('results MCDA tool'!$C$5=\"Spain\",Weights!AM18,IF('results MCDA tool'!$C$5=\"UK\",Weights!AS18,IF('results MCDA tool'!$C$5=\"Mean all countries\",Weights!AX18)))))))))","v":{"$error":"#DIV/0!"}},{"$f":"IF('results MCDA tool'!$C$5=\"Austria\",Weights!D18,IF('results MCDA tool'!$C$5=\"Croatia\",Weights!J18,IF('results MCDA tool'!$C$5=\"Germany\",Weights!P18,IF('results MCDA tool'!$C$5=\"Hungary\",Weights!V18,IF('results MCDA tool'!$C$5=\"The Netherlands\",Weights!AB18,IF('results MCDA tool'!$C$5=\"Norway\",Weights!AH18,IF('results MCDA tool'!$C$5=\"Spain\",Weights!AN18,IF('results MCDA tool'!$C$5=\"UK\",Weights!AT18,IF('results MCDA tool'!$C$5=\"Mean all countries\",Weights!AY18)))))))))","v":{"$error":"#DIV/0!"}},{"$f":"IF('results MCDA tool'!$C$5=\"Austria\",Weights!E18,IF('results MCDA tool'!$C$5=\"Croatia\",Weights!K18,IF('results MCDA tool'!$C$5=\"Germany\",Weights!Q18,IF('results MCDA tool'!$C$5=\"Hungary\",Weights!W18,IF('results MCDA tool'!$C$5=\"The Netherlands\",Weights!AC18,IF('results MCDA tool'!$C$5=\"Norway\",Weights!AI18,IF('results MCDA tool'!$C$5=\"Spain\",Weights!AO18,IF('results MCDA tool'!$C$5=\"UK\",Weights!AU18,IF('results MCDA tool'!$C$5=\"Mean all countries\",Weights!AZ18)))))))))","v":0},{"$f":"IF('results MCDA tool'!$C$5=\"Austria\",Weights!F18,IF('results MCDA tool'!$C$5=\"Croatia\",Weights!L18,IF('results MCDA tool'!$C$5=\"Germany\",Weights!R18,IF('results MCDA tool'!$C$5=\"Hungary\",Weights!X18,IF('results MCDA tool'!$C$5=\"The Netherlands\",Weights!AD18,IF('results MCDA tool'!$C$5=\"Norway\",Weights!AJ18,IF('results MCDA tool'!$C$5=\"Spain\",Weights!AP18,IF('results MCDA tool'!$C$5=\"UK\",Weights!AV18,IF('results MCDA tool'!$C$5=\"Mean all countries\",Weights!BA18)))))))))","v":0}]
["Continuity of care",{"$f":"IF($C$3=\"Normalisation\",STD!E10,IF($C$3=\"Relative standardisation\",STD!A10))","v":0},{"$f":"IF($C$3=\"Normalisation\",STD!F10,IF($C$3=\"Relative standardisation\",STD!B10))","v":false},{"$f":"IF($C$3=\"Normalisation\",STD!G10,IF($C$3=\"Relative standardisation\",STD!C10))","v":false},null,{"$f":"IF('results MCDA tool'!$C$5=\"Austria\",Weights!B19,IF('results MCDA tool'!$C$5=\"Croatia\",Weights!H19,IF('results MCDA tool'!$C$5=\"Germany\",Weights!N19,IF('results MCDA tool'!$C$5=\"Hungary\",Weights!T19,IF('results MCDA tool'!$C$5=\"The Netherlands\",Weights!Z19,IF('results MCDA tool'!$C$5=\"Norway\",Weights!AF19,IF('results MCDA tool'!$C$5=\"Spain\",Weights!AL19,IF('results MCDA tool'!$C$5=\"UK\",Weights!AR19,IF('results MCDA tool'!$C$5=\"Mean all countries\",Weights!AW19)))))))))","v":{"$error":"#DIV/0!"}},{"$f":"IF('results MCDA tool'!$C$5=\"Austria\",Weights!C19,IF('results MCDA tool'!$C$5=\"Croatia\",Weights!I19,IF('results MCDA tool'!$C$5=\"Germany\",Weights!O19,IF('results MCDA tool'!$C$5=\"Hungary\",Weights!U19,IF('results MCDA tool'!$C$5=\"The Netherlands\",Weights!AA19,IF('results MCDA tool'!$C$5=\"Norway\",Weights!AG19,IF('results MCDA tool'!$C$5=\"Spain\",Weights!AM19,IF('results MCDA tool'!$C$5=\"UK\",Weights!AS19,IF('results MCDA tool'!$C$5=\"Mean all countries\",Weights!AX19)))))))))","v":{"$error":"#DIV/0!"}},{"$f":"IF('results MCDA tool'!$C$5=\"Austria\",Weights!D19,IF('results MCDA tool'!$C$5=\"Croatia\",Weights!J19,IF('results MCDA tool'!$C$5=\"Germany\",Weights!P19,IF('results MCDA tool'!$C$5=\"Hungary\",Weights!V19,IF('results MCDA tool'!$C$5=\"The Netherlands\",Weights!AB19,IF('results MCDA tool'!$C$5=\"Norway\",Weights!AH19,IF('results MCDA tool'!$C$5=\"Spain\",Weights!AN19,IF('results MCDA tool'!$C$5=\"UK\",Weights!AT19,IF('results MCDA tool'!$C$5=\"Mean all countries\",Weights!AY19)))))))))","v":{"$error":"#DIV/0!"}},{"$f":"IF('results MCDA tool'!$C$5=\"Austria\",Weights!E19,IF('results MCDA tool'!$C$5=\"Croatia\",Weights!K19,IF('results MCDA tool'!$C$5=\"Germany\",Weights!Q19,IF('results MCDA tool'!$C$5=\"Hungary\",Weights!W19,IF('results MCDA tool'!$C$5=\"The Netherlands\",Weights!AC19,IF('results MCDA tool'!$C$5=\"Norway\",Weights!AI19,IF('results MCDA tool'!$C$5=\"Spain\",Weights!AO19,IF('results MCDA tool'!$C$5=\"UK\",Weights!AU19,IF('results MCDA tool'!$C$5=\"Mean all countries\",Weights!AZ19)))))))))","v":0},{"$f":"IF('results MCDA tool'!$C$5=\"Austria\",Weights!F19,IF('results MCDA tool'!$C$5=\"Croatia\",Weights!L19,IF('results MCDA tool'!$C$5=\"Germany\",Weights!R19,IF('results MCDA tool'!$C$5=\"Hungary\",Weights!X19,IF('results MCDA tool'!$C$5=\"The Netherlands\",Weights!AD19,IF('results MCDA tool'!$C$5=\"Norway\",Weights!AJ19,IF('results MCDA tool'!$C$5=\"Spain\",Weights!AP19,IF('results MCDA tool'!$C$5=\"UK\",Weights!AV19,IF('results MCDA tool'!$C$5=\"Mean all countries\",Weights!BA19)))))))))","v":0}]
["Total costs",{"$f":"IF($C$3=\"Normalisation\",STD!E11,IF($C$3=\"Relative standardisation\",STD!A11))","v":false},{"$f":"IF($C$3=\"Normalisation\",STD!F11,IF($C$3=\"Relative standardisation\",STD!B11))","v":false},{"$f":"IF($C$3=\"Normalisation\",STD!G11,IF($C$3=\"Relative standardisation\",STD!C11))","v":false},null,{"$f":"IF('results MCDA tool'!$C$5=\"Austria\",Weights!B20,IF('results MCDA tool'!$C$5=\"Croatia\",Weights!H20,IF('results MCDA tool'!$C$5=\"Germany\",Weights!N20,IF('results MCDA tool'!$C$5=\"Hungary\",Weights!T20,IF('results MCDA tool'!$C$5=\"The Netherlands\",Weights!Z20,IF('results MCDA tool'!$C$5=\"Norway\",Weights!AF20,IF('results MCDA tool'!$C$5=\"Spain\",Weights!AL20,IF('results MCDA tool'!$C$5=\"UK\",Weights!AR20,IF('results MCDA tool'!$C$5=\"Mean all countries\",Weights!AW20)))))))))","v":{"$error":"#DIV/0!"}},{"$f":"IF('results MCDA tool'!$C$5=\"Austria\",Weights!C20,IF('results MCDA tool'!$C$5=\"Croatia\",Weights!I20,IF('results MCDA tool'!$C$5=\"Germany\",Weights!O20,IF('results MCDA tool'!$C$5=\"Hungary\",Weights!U20,IF('results MCDA tool'!$C$5=\"The Netherlands\",Weights!AA20,IF('results MCDA tool'!$C$5=\"Norway\",Weights!AG20,IF('results MCDA tool'!$C$5=\"Spain\",Weights!AM20,IF('results MCDA tool'!$C$5=\"UK\",Weights!AS20,IF('results MCDA tool'!$C$5=\"Mean all countries\",Weights!AX20)))))))))","v":{"$error":"#DIV/0!"}},{"$f":"IF('results MCDA tool'!$C$5=\"Austria\",Weights!D20,IF('results MCDA tool'!$C$5=\"Croatia\",Weights!J20,IF('results MCDA tool'!$C$5=\"Germany\",Weights!P20,IF('results MCDA tool'!$C$5=\"Hungary\",Weights!V20,IF('results MCDA tool'!$C$5=\"The Netherlands\",Weights!AB20,IF('results MCDA tool'!$C$5=\"Norway\",Weights!AH20,IF('results MCDA tool'!$C$5=\"Spain\",Weights!AN20,IF('results MCDA tool'!$C$5=\"UK\",Weights!AT20,IF('results MCDA tool'!$C$5=\"Mean all countries\",Weights!AY20)))))))))","v":{"$error":"#DIV/0!"}},{"$f":"IF('results MCDA tool'!$C$5=\"Austria\",Weights!E20,IF('results MCDA tool'!$C$5=\"Croatia\",Weights!K20,IF('results MCDA tool'!$C$5=\"Germany\",Weights!Q20,IF('results MCDA tool'!$C$5=\"Hungary\",Weights!W20,IF('results MCDA tool'!$C$5=\"The Netherlands\",Weights!AC20,IF('results MCDA tool'!$C$5=\"Norway\",Weights!AI20,IF('results MCDA tool'!$C$5=\"Spain\",Weights!AO20,IF('results MCDA tool'!$C$5=\"UK\",Weights!AU20,IF('results MCDA tool'!$C$5=\"Mean all countries\",Weights!AZ20)))))))))","v":0},{"$f":"IF('results MCDA tool'!$C$5=\"Austria\",Weights!F20,IF('results MCDA tool'!$C$5=\"Croatia\",Weights!L20,IF('results MCDA tool'!$C$5=\"Germany\",Weights!R20,IF('results MCDA tool'!$C$5=\"Hungary\",Weights!X20,IF('results MCDA tool'!$C$5=\"The Netherlands\",Weights!AD20,IF('results MCDA tool'!$C$5=\"Norway\",Weights!AJ20,IF('results MCDA tool'!$C$5=\"Spain\",Weights!AP20,IF('results MCDA tool'!$C$5=\"UK\",Weights!AV20,IF('results MCDA tool'!$C$5=\"Mean all countries\",Weights!BA20)))))))))","v":0}]
[]
["OUTPUT"]
["MCDA TABLE: The performance scores are multiplied with the weights to calculate the partial value scores. These partial values scores are summed to obtain the overall value score for each alternative. "]
[null,"Weighted scores"]
[null,"PATIENTS",null,null,"PARTNERS",null,null,"PROFESSIONALS",null,null,"PAYERS",null,null,"POLICY MAKERS"]
[null,{"$f":"IF(ISTEXT($G$5),$G$5, \"A\")","v":"A"},{"$f":"IF(ISTEXT($I$5),$I$5, \"B\")","v":"B"},{"$f":"IF(ISTEXT($K$5),$K$5, \"C\")","v":"C"},{"$f":"IF(ISTEXT($G$5),$G$5, \"A\")","v":"A"},{"$f":"IF(ISTEXT($I$5),$I$5, \"B\")","v":"B"},{"$f":"IF(ISTEXT($K$5),$K$5, \"C\")","v":"C"},{"$f":"IF(ISTEXT($G$5),$G$5, \"A\")","v":"A"},{"$f":"IF(ISTEXT($I$5),$I$5, \"B\")","v":"B"},{"$f":"IF(ISTEXT($K$5),$K$5, \"C\")","v":"C"},{"$f":"IF(ISTEXT($G$5),$G$5, \"A\")","v":"A"},{"$f":"IF(ISTEXT($I$5),$I$5, \"B\")","v":"B"},{"$f":"IF(ISTEXT($K$5),$K$5, \"C\")","v":"C"},{"$f":"IF(ISTEXT($G$5),$G$5, \"A\")","v":"A"},{"$f":"IF(ISTEXT($I$5),$I$5, \"B\")","v":"B"},{"$f":"IF(ISTEXT($K$5),$K$5, \"C\")","v":"C"}]
["Physical functioning",{"$f":"B10*F10","v":{"$error":"#DIV/0!"}},{"$f":"C10*F10","v":{"$error":"#DIV/0!"}},{"$f":"D10*F10","v":{"$error":"#DIV/0!"}},{"$f":"B10*G10","v":{"$error":"#DIV/0!"}},{"$f":"C10*G10","v":{"$error":"#DIV/0!"}},{"$f":"D10*G10","v":{"$error":"#DIV/0!"}},{"$f":"C10*H10","v":{"$error":"#DIV/0!"}},{"$f":"C10*H10","v":{"$error":"#DIV/0!"}},{"$f":"D10*H10","v":{"$error":"#DIV/0!"}},{"$f":"B10*I10","v":0},{"$f":"C10*I10","v":0},{"$f":"D10*I10","v":0},{"$f":"B10*J10","v":0},{"$f":"C10*J10","v":0},{"$f":"D10*J10","v":0}]
["Psychological well being",{"$error":"#DIV/0!"},{"$error":"#DIV/0!"},{"$error":"#DIV/0!"},{"$error":"#DIV/0!"},{"$error":"#DIV/0!"},{"$error":"#DIV/0!"},{"$error":"#DIV/0!"},{"$error":"#DIV/0!"},{"$error":"#DIV/0!"},0,{"$f":"C11*J11","v":0},0,0,0,0]
["Social relationships & participation",{"$error":"#DIV/0!"},{"$error":"#DIV/0!"},{"$error":"#DIV/0!"},{"$error":"#DIV/0!"},{"$error":"#DIV/0!"},{"$error":"#DIV/0!"},{"$error":"#DIV/0!"},{"$error":"#DIV/0!"},{"$error":"#DIV/0!"},0,0,0,0,0,0]
["Enjoyment of life",{"$error":"#DIV/0!"},{"$error":"#DIV/0!"},{"$error":"#DIV/0!"},{"$error":"#DIV/0!"},{"$error":"#DIV/0!"},{"$error":"#DIV/0!"},{"$error":"#DIV/0!"},{"$error":"#DIV/0!"},{"$error":"#DIV/0!"},0,0,0,0,0,0]
["Resilience",{"$error":"#DIV/0!"},{"$error":"#DIV/0!"},{"$error":"#DIV/0!"},{"$error":"#DIV/0!"},{"$error":"#DIV/0!"},{"$error":"#DIV/0!"},{"$error":"#DIV/0!"},{"$error":"#DIV/0!"},{"$error":"#DIV/0!"},0,0,0,0,0,0]
["Person-centeredness",{"$error":"#DIV/0!"},{"$error":"#DIV/0!"},{"$error":"#DIV/0!"},{"$error":"#DIV/0!"},{"$error":"#DIV/0!"},{"$error":"#DIV/0!"},{"$error":"#DIV/0!"},{"$error":"#DIV/0!"},{"$error":"#DIV/0!"},0,0,0,0,0,0]
["Continuity of care",{"$error":"#DIV/0!"},{"$error":"#DIV/0!"},{"$error":"#DIV/0!"},{"$error":"#DIV/0!"},{"$error":"#DIV/0!"},{"$error":"#DIV/0!"},{"$error":"#DIV/0!"},{"$error":"#DIV/0!"},{"$error":"#DIV/0!"},0,0,0,0,0,0]
["Total costs",{"$error":"#DIV/0!"},{"$error":"#DIV/0!"},{"$error":"#DIV/0!"},{"$error":"#DIV/0!"},{"$error":"#DIV/0!"},{"$error":"#DIV/0!"},{"$error":"#DIV/0!"},{"$error":"#DIV/0!"},{"$error":"#DIV/0!"},0,0,0,0,0,0]
["Overall value score",{"$f":"SUM(B24:B31)","v":{"$error":"#DIV/0!"}},{"$error":"#DIV/0!"},{"$error":"#DIV/0!"},{"$error":"#DIV/0!"},{"$error":"#DIV/0!"},{"$error":"#DIV/0!"},{"$error":"#DIV/0!"},{"$error":"#DIV/0!"},{"$error":"#DIV/0!"},0,0,0,0,0,0]
["Preferred alternative",{"$f":"IF(AND(B32>C32,B32>D32),\"A\",IF(AND(C32>B32,C32>D32),\"B\",IF(AND(D32>B32,D32>C32),\"C\")))","v":{"$error":"#DIV/0!"}},null,null,{"$f":"IF(AND(E32>F32,E32>G32),\"A\",IF(AND(F32>E32,F32>G32),\"B\",IF(AND(G32>E32,G32>F32),\"C\")))","v":{"$error":"#DIV/0!"}},null,null,{"$f":"IF(AND(H32>I32,H32>J32),\"A\",IF(AND(I32>H32,I32>J32),\"B\",IF(AND(J32>H32,J32>I32),\"C\")))","v":{"$error":"#DIV/0!"}},null,null,{"$f":"IF(AND(K32>L32,K32>M32),\"A\",IF(AND(L32>K32,L32>M32),\"B\",IF(AND(M32>K32,M32>L32),\"C\")))","v":false},null,null,{"$f":"IF(AND(N32>O32,N32>P32),\"A\",IF(AND(O32>N32,O32>P32),\"B\",IF(AND(P32>N32,P32>O32),\"C\")))","v":false}]
[]
[]
["MCDA GRAPH"]

{"sheet":"Austria","index":4,"n_rows":10,"n_cols":7,"rows_kept":10,"cut":false,"hidden":true,"merged":[[0,1,0,3],[0,5,0,6]]}
["Austria"," Weights",null,null,null,"Terminology in German"]
[null,"Patients","Partners","Professionals",null,"Criteria","Definitions"]
["Physical functioning",0.16183986371379896,0.10107526881720429,9.2448308458024875E-2,null,"Körperliche Funktionsfähigkeit","Akzeptable / zufriedenstellende körperliche Funktionsfähigkeit und Fähigkeit Aktivitäten des täglichen Lebens ohne Hilfe auszuführen – z.B. Selbstversorgung, Medikamenteneinnahme, Gehen, Treppensteigen, Bücken, Heben"]
["Psychological well-being",0.131175468483816,0.16344086021505375,0.1456088152586312,null,"Psychisches Wohlbefinden ","Akzeptables / zufriedenstellendes psychisches Wohlbefinden – nicht angespannt, beunruhigt, antriebslos, ängstlich und niedergeschlagen sein"]
["Social relations & participation",8.6882453151618397E-2,9.2473118279569888E-2,0.10580907242127202,null,"Soziale Beziehungen und soziale Einbindung","Akzeptable / zufriedenstellende soziale Beziehungen und soziale Einbindung –enge Beziehungen zu anderen Personen"]
["Enjoyment of life",0.21805792163543442,0.23225806451612904,0.20997538618879613,null,"Lebensfreude","Vergnügen und Freude im Leben haben"]
["Resilience",0.16695059625212946,0.14838709677419354,0.14523353280543796,null,"Widerstandsfähigkeit","Fähigkeit sich zu erholen, anzupassen und die innere Balance wiederherzustellen"]
["Person-centeredness",4.2589437819420782E-2,8.3870967741935476E-2,9.221891633046643E-2,null,"Personenzentrierung","Die Versorgung entspricht den Bedürfnissen, den körperlichen und geistigen Fähigkeiten und den Präferenzen der Person; Entscheidungen werden gemeinsam getroffen"]
["Continuity of care",0.13458262350936967,0.13978494623655913,0.17570130374541498,null,"Kontinuität der Versorgung","Die Versorgung ist gekennzeichnet von einer guten Zusammenarbeit der Leistungsanbieter, einem Schnittstellenmanagement und einer zeitnahen Versorgung"]
["Total costs",5.7921635434412269E-2,3.8709677419354833E-2,3.3004664791956406E-2,null,"Gesamtkosten der Versorgung und Betreuung","Gesamtkosten der Versorgung und Betreuung pro Patient und Jahr. Hinweis: Das sind die Kosten, die die Krankenversicherung bzw. der Staat trägt"]

{"sheet":"Croatia","index":5,"n_rows":10,"n_cols":9,"rows_kept":10,"cut":false,"hidden":true,"merged":[[0,1,0,2],[0,4,0,5]]}
["Croatia","Weights",null,null,"Terminology in Croatian",null,null,null," "]
[null,"Patients","Partners",null,"Criteria","Definitions",null,null," "]
["Physical functioning",9.358770989189498E-2,8.3333333333333343E-2,null,"Tjelesno funkcioniranje","prihvatljivo tjelesno funkcioniranje i mogućnost obavljanja svakodnevnih aktivnosti bez potrebe za pomoći (npr. pri odijevanju, sjedanju i dizanju sa stolca, uzimanju lijekova)"]
["Psychological well-being",0.13980668222779186,0.13756613756613759,null,"Psihološko stanje ","odsutnost stresa, zabrinutosti, neraspoloženja, tjeskobe i potištenosti"]
["Social relations & participation",0.10767120815972002,9.9206349206349229E-2,null,"Društveni odnosi i sudjelovanje u društvu","održavanje sadržajnih odnosa s drugima onako kako želimo"]
["Enjoyment of life",0.18887486869232537,0.18915343915343918,null,"Uživanje u životu","uživati u životu i biti sretan"]
["Resilience",0.15007449685497654,0.11640211640211642,null,"Otpornost (izdržljivost, svladavanje problema)","sposobnost oporavka ili prilagodbe poteškoćama i ponovne uspostave ravnoteže"]
["Person-centeredness",0.1285794912188539,0.14417989417989421,null,"Usmjerenost na osobu","skrb koja se poklapa s potrebama, mogućnostima i sklonostima pojedinca i gdje se odluke donose zajednički temeljem dobrih informacija"]
["Continuity of care",0.1592760363382012,0.18915343915343918,null,"Kontinuitet skrbi","dobra suradnja, dobra povezanost skrbi, bez gubitka vremena"]
["Total costs",3.2129506616235905E-2,4.100529100529101E-2,null,"Ukupni troškovi zdravstvene i socijalne skrbi","Izraženi kao ukupan godišnji trošak zdravstvene i socijalne skrbi po sudioniku programa. Napomena: ovo su troškovi koje plaća nositelj zdravstvenog osiguranja/socijalne skrbi "]

{"sheet":"Germany","index":6,"n_rows":10,"n_cols":7,"rows_kept":10,"cut":false,"hidden":true,"merged":[[0,1,0,3],[0,5,0,6]]}
["Germany","Weights",null,null,null,"Terminology in German"]
[null,"Patients","Partners","Professionals",null,"Criteria","Definitions"]
["Physical functioning",0.16859504132231404,5.7636887608069169E-2,7.6923076923076913E-2,null,"Körperliche Funktionsfähigkeit","Akzeptable / zufriedenstellende körperliche Funktionsfähigkeit und Fähigkeit Aktivitäten des täglichen Lebens ohne Hilfe auszuführen – z.B. Selbstversorgung, Medikamenteneinnahme, Gehen, Treppensteigen, Bücken, Heben"]
["Psychological well-being",0.10909090909090909,7.2046109510086456E-2,0.1081081081081081,null,"Psychisches Wohlbefinden ","Akzeptables / zufriedenstellendes psychisches Wohlbefinden – nicht angespannt, beunruhigt, antriebslos, ängstlich und niedergeschlagen sein"]
["Social relations & participation",7.9338842975206603E-2,8.0691642651296844E-2,9.4594594594594586E-2,null,"Soziale Beziehungen und soziale Einbindung","Akzeptable / zufriedenstellende Soziale Beziehungen & Einbindung – enge Beziehungen zu anderen Personen"]
["Enjoyment of life",0.22314049586776857,0.22478386167146977,0.17983367983367982,null,"Lebensfreude","Vergnügen und Freude im Leben haben"]
["Resilience",0.16694214876033056,0.15850144092219023,0.13305613305613304,null,"Widerstandsfähigkeit","Fähigkeit sich zu erholen, anzupassen und die innere Balance wiederherzustellen"]
["Person-centeredness",3.8016528925619832E-2,8.645533141210375E-2,0.12370062370062368,null,"Personenzentrierung","Die Versorgung entspricht den Bedürfnissen, den körperlichen und geistigen Fähigkeiten und den Präferenzen der Person; Entscheidungen werden gemeinsam getroffen"]
["Continuity of care",0.17520661157024792,0.23919308357348704,0.22245322245322244,null,"Kontinuität der Versorgung","Die Versorgung ist gekennzeichnet von einer guten Zusammenarbeit der Leistungsanbieter, einem Schnittstellenmanagement und einer zeitnahen Versorgung"]
["Total costs",3.9669421487603301E-2,8.0691642651296844E-2,6.133056133056132E-2,null,"Gesamtkosten der Versorgung und Betreuung","Gesamtkosten der Versorgung und Betreuung pro Patient/in und Jahr. Hinweis: Das sind die Kosten, die die Krankenversicherung trägt"]

{"sheet":"Hungary","index":7,"n_rows":10,"n_cols":7,"rows_kept":10,"cut":false,"hidden":true,"merged":[[0,1,0,3],[0,5,0,6]]}
["Hungary","Weights",null,null,null,"Terminology in Hungarian"]
[null,"Patients","Partners","Professionals",null,"Criteria","Definitions"]
["Physical functioning",0.13556014284515602,9.7245190597497158E-2,0.11349377566636284,null,"Mobilitás ","mozgása elfogadható, és a mindennapi tevékenységeket (pl. öltözködést, székre leülést és székről felállást, gyógyszerek beszedését) képes segítség nélkül végezni"]
["Psychological well-being",6.6665228723015849E-2,0.15631073236396409,0.102708225697376,null,"Lelki állapot","nem feszült, nem gondterhelt, nem kedvetlen, nem szorong és nem levert"]
["Social relations & participation",0.11825062601458666,0.11756749402299768,0.10400647985964973,null,"Társas kapcsolatok és közösségi élet","van számára fontos kapcsolata más emberekkel"]
["Enjoyment of life",0.14797021993763729,0.20329287451199093,0.16765376715349622,null,"Életöröm","van öröm és boldogság az életében"]
["Resilience",0.14429793627241536,0.10670752127149001,0.10383766467426384,null,"Az egyensúly visszanyerésének képessége","képes felépülni a problémákból, vagy alkalmazkodni azokhoz, és képes visszanyerni az egyensúlyát"]
["Person-centeredness",0.14674219112440501,0.12634410834221496,0.18821948074313966,null,"Betegközpontúság","olyan ellátás, amely megfelel az egyén szükségleteinek, képességeinek és kívánságainak, és ahol a döntéseket a megfelelő információk alapján közösen hozzák meg"]
["Continuity of care",0.20308263118253952,0.21641020065958186,0.1894174426956664,null,"Az ellátás folyamatossága","jó együttműködés, zökkenőmentes átjárás az ellátást végzők között és nincs időveszteség"]
["Total costs",3.7431023900244276E-2,-2.3878121769736697E-2,3.0663163510045326E-2,null,"Egészségügyi és szociális ellátás összköltsége","a programban résztvevők egészségügyi és szociális ellátásának teljes költsége személyenként és évenként. Megjegyzés: Ezt a költséget az egészégbiztosító vagy az állam fizeti"]

{"sheet":"MCDA Tool completed example","index":8,"n_rows":66,"n_cols":17,"rows_kept":66,"cut":false,"hidden":false,"merged":[[39,0,49,0],[39,1,39,6],[40,2,40,6],[0,0,0,8],[0,10,0,11],[2,0,3,0],[2,2,2,6],[5,0,14,0],[5,1,5,4],[16,0,25,0],[16,1,16,5],[27,0,37,0],[27,1,27,4],[28,2,28,4],[65,8,65,10],[65,11,65,13],[65,14,65,16],[53,0,66,0],[53,2,53,16],[54,1,55,1],[54,2,54,4],[54,5,54,7],[54,8,54,10],[54,11,54,13],[54,14,54,16],[65,2,65,4],[65,5,65,7]]}
["MCDA TOOL",null,null,null,null,null,null,null,null,null,"Yellow cells are meant to be filled in by you"]
[]
["Step 1:","Number of alternatives:","2 alternatives"]
[null,"Name \nalternative A:","Integrated care","Name \nalternative B:","Usual Care","Name alternative C:","N/A"]
[]
["Step 2:","SCORES ON OUTCOMES"]
[null,"Outcomes",{"$f":"IF(NOT(ISBLANK($C$4)),$C$4, \"Alternative A\")","v":"Integrated care"},{"$f":"IF(NOT(ISBLANK($E$4)),$E$4, \"Alternative B\")","v":"Usual Care"},{"$f":"IF(NOT(ISBLANK($G$4)),$G$4, \"Alternative C\")","v":"N/A"}]
[null,"Physical functioning",60,70,"N/A"]
[null,"Psychological well-being",70,50,"N/A"]
[null,"Social relationships & participation",7,10,"N/A"]
[null,"Enjoyment of life",4,3,"N/A"]
[null,"Resilience",25,20,"N/A"]
[null,"Person-centeredness",16,10,"N/A"]
[null,"Continuity of care",5,4,"N/A"]
[null,"Total costs",8000,6500,"N/A"]
[]
["Step 3:","INFORMATION ABOUT  SCORES ON OUTCOMES"]
[null,"Outcomes","Outcome available","Minimum possible score","Maximum possible score","Higher score implies"]
[null,"Physical functioning",{"$f":"IF(SUMPRODUCT(--ISNUMBER(C8:E8))>0,\"Yes\",\"No\")","v":"Yes"},0,100,"Better performance"]
[null,"Psychological well-being",{"$f":"IF(SUMPRODUCT(--ISNUMBER(C9:E9))>0,\"Yes\",\"No\")","v":"Yes"},0,100,"Better performance"]
[null,"Social relationships & participation","Yes",0,28,"Worse performance"]
[null,"Enjoyment of life","Yes",1,4,"Better performance"]
[null,"Resilience","Yes",6,30,"Better performance"]
[null,"Person-centeredness","Yes",0,18,"Better performance"]
[null,"Continuity of care","Yes",1,5,"Better performance"]
[null,"Total costs","Yes",5500,8500,"Worse performance"]
[]
["Step 4:","STANDARDISED OUTCOME SCORES"]
[null,"Select a standardisation method:","Relative standardisation"]
[null,"Outcomes",{"$f":"IF(NOT(ISBLANK($C$4)),$C$4, \"Alternative A\")","v":"Integrated care"},{"$f":"IF(NOT(ISBLANK($E$4)),$E$4, \"Alternative B\")","v":"Usual Care"},{"$f":"IF(NOT(ISBLANK($G$4)),$G$4, \"Alternative C\")","v":"N/A"}]
[null,"Physical functioning",0.65079137345596849,0.75925660236529657,"Not available"]
[null,"Psychological well-being",0.81373347120673489,0.58123819371909635,"Not available"]
[null,"Social relationships & participation",0.81923192051904037,0.57346234436332832,"Not available"]
[null,"Enjoyment of life",0.8,0.6,"Not available"]
[null,"Resilience",0.78086880944303039,0.62469504755442429,"Not available"]
[null,"Person-centeredness",0.84799830400508802,0.52999894000318004,"Not available"]
[null,"Continuity of care",0.78086880944303039,0.62469504755442429,"Not available"]
[null,"Total costs",0.63059262509446579,0.77611400011626552,"Not available"]
[]
["Step 5:","RELATIVE WEIGHTS"]
[null,"Select a country from \nthe list:","the Netherlands"]
[null,"Outcomes","PATIENTS","PARTNERS","PROFESSIONALS","PAYERS","POLICY MAKERS"]
[null,"Physical functioning",0.15937279430350995,0.11451245049019235,0.11720941782985665,0.14268482281362332,0.13576735353009908]
[null,"Psychological well-being",0.1665558758263079,0.14519772941775425,0.17626847348561475,0.18207882387201524,0.15444412193138696]
[null,"Social relationships & participation",8.426581722477125E-2,8.6164703189179639E-2,0.10818963099210713,0.10019278920766728,9.7524864974657399E-2]
[null,"Enjoyment of life",0.22631151213986367,0.24898055347918116,0.21990169762556816,0.24445071401217341,0.22145604143302161]
[null,"Resilience",0.14788821579192182,0.1407912217871988,0.12738665732828108,0.11249944096993124,0.14296919672574018]
[null,"Person-centeredness",7.7898284122598749E-2,8.2446499434317602E-2,8.2501350042697055E-2,6.1917250673451593E-2,8.1204646601289621E-2]
[null,"Continuity of care",0.10357170920097475,0.12256835230290883,0.10524269886143094,8.1522104652498276E-2,9.5785640690809568E-2]
[null,"Total costs",3.413579139005176E-2,5.9338489899267439E-2,6.3300073834444248E-2,7.4654053798639486E-2,7.084813411299562E-2]
[]
[]
[]
["Step 6:",null,"WEIGHTED SCORES"]
[null,"Outcomes","PATIENTS",null,null,"PARTNERS",null,null,"PROFESSIONALS",null,null,"PAYERS",null,null,"POLICY MAKERS"]
[null,null,{"$f":"IF(NOT(ISBLANK($C$4)),$C$4, \"Alternative A\")","v":"Integrated care"},{"$f":"IF(NOT(ISBLANK($E$4)),$E$4, \"Alternative B\")","v":"Usual Care"},{"$f":"IF(NOT(ISBLANK($G$4)),$G$4, \"Alternative C\")","v":"N/A"},{"$f":"IF(NOT(ISBLANK($C$4)),$C$4, \"Alternative A\")","v":"Integrated care"},{"$f":"IF(NOT(ISBLANK($E$4)),$E$4, \"Alternative B\")","v":"Usual Care"},{"$f":"IF(NOT(ISBLANK($G$4)),$G$4, \"Alternative C\")","v":"N/A"},{"$f":"IF(NOT(ISBLANK($C$4)),$C$4, \"Alternative A\")","v":"Integrated care"},{"$f":"IF(NOT(ISBLANK($E$4)),$E$4, \"Alternative B\")","v":"Usual Care"},{"$f":"IF(NOT(ISBLANK($G$4)),$G$4, \"Alternative C\")","v":"N/A"},{"$f":"IF(NOT(ISBLANK($C$4)),$C$4, \"Alternative A\")","v":"Integrated care"},{"$f":"IF(NOT(ISBLANK($E$4)),$E$4, \"Alternative B\")","v":"Usual Care"},{"$f":"IF(NOT(ISBLANK($G$4)),$G$4, \"Alternative C\")","v":"N/A"},{"$f":"IF(NOT(ISBLANK($C$4)),$C$4, \"Alternative A\")","v":"Integrated care"},{"$f":"IF(NOT(ISBLANK($E$4)),$E$4, \"Alternative B\")","v":"Usual Care"},{"$f":"IF(NOT(ISBLANK($G$4)),$G$4, \"Alternative C\")","v":"N/A"}]
[null,"Physical functioning",0.10371843969629679,0.12100484631234626,null,7.4523714932320864E-2,8.6944334087707686E-2,null,7.6278878011466891E-2,8.8992024346711371E-2,null,9.2858051810199432E-2,0.108334393778566,null,8.8356222474335208E-2,0.10308225955339108]
[null,"Psychological well-being",0.13553209098601943,9.6808636418585309E-2,null,0.11815225237044541,8.4394465978889582E-2,null,0.1434355567937616,0.10245396913840114,null,0.14816363338261468,0.10583116670186762,null,0.12567635144670372,8.9768822461931227E-2]
[null,"Social relationships & participation",6.9033247279155788E-2,4.8323273095409056E-2,null,7.0588875274624721E-2,4.9412212692237306E-2,null,8.8632399177910215E-2,6.2042679424537159E-2,null,8.2081131124756637E-2,5.745679178732966E-2,null,7.9895482431548676E-2,5.5926837702084078E-2]
[null,"Enjoyment of life",0.18104920971189095,0.13578690728391821,null,0.19918444278334493,0.14938833208750868,null,0.17592135810045453,0.13194101857534088,null,0.19556057120973874,0.14667042840730404,null,0.17716483314641729,0.13287362485981297]
[null,"Resilience",0.11548129499609196,9.238503599687356E-2,null,0.10993947373699957,8.7951578989599655E-2,null,9.9472267446862134E-2,7.9577813957489696E-2,null,8.7847304533196682E-2,7.027784362655734E-2,null,0.11164018643425513,8.931214914740411E-2]
[null,"Person-centeredness",6.6057612820870221E-2,4.1286008013043884E-2,null,6.9914491691457775E-2,4.3696557307161113E-2,null,6.9961004914337196E-2,4.372562807146075E-2,null,5.2505723559744845E-2,3.2816077224840527E-2,null,6.8861402595226134E-2,4.3038376622016337E-2]
[null,"Continuity of care",8.0875917255744903E-2,6.4700733804595928E-2,null,9.5709803338166324E-2,7.6567842670533057E-2,null,8.2180740962496945E-2,6.5744592769997556E-2,null,6.3658068803286463E-2,5.0926455042629167E-2,null,7.4796019207970355E-2,5.9836815366376278E-2]
[null,"Total costs",2.1525778302329802E-2,2.6493265602867449E-2,null,3.7418414114720494E-2,4.6053432756579069E-2,null,3.9916559727935702E-2,4.9128073511305478E-2,null,4.7076295758827547E-2,5.7940056318556976E-2,null,4.4676310873358681E-2,5.4986228767210675E-2]
[null,"Overall value score",{"$f":"IF(SUMPRODUCT(--(C57:C64<>\"\"))=0,\"\",SUM(C57:C64))","v":0.77327359104839988},0.62678870652763974,"",0.77543146824208009,0.62440875657021611,"",0.77579876513522528,0.623605799795244,"",{"$f":"IF(SUMPRODUCT(--(L57:L64<>\"\"))=0,\"\",SUM(L57:L64))","v":0.76975078018236498},{"$f":"IF(SUMPRODUCT(--(M57:M64<>\"\"))=0,\"\",SUM(M57:M64))","v":0.63025321288765124},"",0.77106680860981502,0.62882511448022682,""]
[null,"Preferred alternative","Integrated care",null,null,"Integrated care",null,null,"Integrated care",null,null,"Integrated care",null,null,"Integrated care"]

{"sheet":"Detailed instructions","index":9,"n_rows":11,"n_cols":8,"rows_kept":11,"cut":false,"hidden":false,"merged":[[0,0,0,7]]}
["MCDA TOOL - Detailed instructions"]
[]
[null,null,null,null,null,"Outcomes","Definitions used in the Discrete Choice Experiment","Recommended instruments"]
[null,null,null,null,null,"Physical functioning","Acceptable physical functioning and being able to do daily activities without needing assistance (e.g., getting dressed, sitting down and getting up from a chair, taking your medications).","SF-36 physical functioning domain or Katz-15"]
[null,null,null,null,null,"Psychological well-being","The absence of stress, worrying, listlessness, anxiety, and feeling down.","MHI-5"]
[null,null,null,null,null,"Social relations & participation","Having meaningful connections with others as desired.","IPA"]
[null,null,null,null,null,"Enjoyment of life","Having pleasure and happiness in life.","ICECAP-O or Q-LES-Q"]
[null,null,null,null,null,"Resilience","The ability to recover from or adjust to difficulties and to restore one’s balance.","BRS"]
[null,null,null,null,null,"Person-centeredness","Care that matches an individual’s needs, capabilities, and preferences and where decisions are made jointly based on good information.","P3CEQ"]
[null,null,null,null,null,"Continuity of care","Good collaboration, smooth transitions between caregivers, and no waste of time.","NCQ + CPCQ"]
[null,null,null,null,null,"Total costs","Expressed as the total health- and social care costs per participant in the programme, per year. Note: These are costs paid for by the health insurer / government. ","iMTA-MCQ"]

{"sheet":"Norway","index":10,"n_rows":10,"n_cols":9,"rows_kept":10,"cut":false,"hidden":true,"merged":[[0,1,0,5],[0,7,0,8]]}
["Norway","Weights",null,null,null,null,null,"Terminology in Norwegian"]
[null,"Patients","Partners","Professionals","Payers","Policy makers",null,"Criteria","Definitions"]
["Physical functioning",0.17795378417211136,0.10663670403704387,0.10659341824860445,0.13889714321896196,0.11389795114073974,null,"Fysisk funksjon","Akseptabel fysisk funksjon og i stand til å utføre dagligdagse aktiviteter uten behov for hjelp (for eksempel å kle på seg, sette seg og reise seg fra en stol, ta medisiner)"]
["Psychological well-being",0.17462646004072641,0.18406762798357157,0.19405824039975475,0.15663106313021302,0.14998841186586112,null,"Mental helse","Fravær av stress, bekymringer, likegyldighet, angst og følelse av å være nedfor"]
["Social relations & participation",0.11010587619622704,0.15425829351359763,0.13492194771225341,0.11718555570351769,0.14275185230578463,null,"Sosiale relasjoner og deltakelse","Ha meningsfulle relasjoner med andre"]
["Enjoyment of life",0.2489124927553846,0.27325787382024447,0.24604027542510332,0.2614490426250905,0.24439260532628107,null,"Livsglede","Oppleve glede og lykke i livet"]
["Resilience",0.10878075222937142,8.7528364908046233E-2,0.10765990509850275,0.13231309813629963,0.12780312128517882,null,"Hente seg inn igjen ","Evnen til å komme seg raskt på beina igjen, tilpasse seg vanskeligheter og gjenopprette balanse"]
["Person-centeredness",4.6919134364648361E-2,6.4329032550357365E-2,6.3219896490084762E-2,4.1667032354156357E-2,5.8522757202285544E-2,null,"Personsentrert ","Behandling som passer til individets behov, evner og preferanser, og hvor beslutninger blir tatt i fellesskap basert på god informasjon"]
["Continuity of care",0.11006190526520016,0.11244939539139287,0.11649188217696634,9.1648370903990084E-2,0.12717862218110587,null,"Kontinuitet i behandling","Godt samarbeid, sømløse overganger mellom behandlere og god bruk av tiden"]
["Total costs",2.2639594976330647E-2,1.747270779574581E-2,3.1014434448730276E-2,6.0208693927770618E-2,3.5464678692763263E-2,null,"Totale helse- og sosialtjenestekostnader ","Uttrykt som totale helse- og sosialtjenestekostnader per deltaker i programmet, per år. Merk: dette er kostnader som betales av staten"]

{"sheet":"Spain","index":11,"n_rows":10,"n_cols":7,"rows_kept":10,"cut":false,"hidden":true,"merged":[[0,1,0,3],[0,5,0,6]]}
["Spain","Weights",null,null,null,"Terminology in Spanish "]
[null,"Patients","Partners","Professionals",null,"Criteria","Definitions"]
["Physical functioning",0.16425120772946858,0.21198315456254885,9.2807424593967527E-2,null,"Actividad física","Actividad física aceptable y ser capaz de realizar las actividades diarias sin necesidad de asistencia (por ejemplo, vestirse, sentarse y levantarse de una silla, tomar sus medicamentos)"]
["Psychological well-being",0.19444444444444442,0.12661579756856731,0.13766434648105183,null,"Bienestar psicológico","La ausencia de estrés, preocupación, apatía, ansiedad y depresión"]
["Social relations & participation",0.14130434782608692,0.13528418173258111,0.10750193348801239,null,"Relaciones y participación social","Tener conexiones significativas con otros tal y como se desea"]
["Enjoyment of life",0.18719806763285021,0.16635544924688514,0.20881670533642696,null,"Disfrute de la vida","Sentir placer y felicidad en la vida"]
["Resilience",0.13647342995169079,0.11685313739976184,0.11136890951276103,null,"Resiliencia","La capacidad de recuperarse o ajustarse a las dificultades y restaurar el equilibrio personal"]
["Person-centeredness",8.5748792270531379E-2,0.13787203515138463,0.17092034029389019,null,"Atención centrada en la persona","Atención que se adapta a la necesidades del individuo, sus capacidades y preferencias, y donde las decisiones se toman conjuntamente basándose en una buena información"]
["Continuity of care",7.3671497584541057E-2,7.9347283247851286E-2,9.7447795823665903E-2,null,"Continuidad de la atención","Buena colaboración, transiciones suaves entre los cuidadores y ninguna pérdida de tiempo"]
["Total costs",1.6908212560386472E-2,2.5688961090419897E-2,7.3472544470224291E-2,null,"Costes totales de salud y asistencia social ","Expresado como el coste total de salud y asistencia social por participante en el programa, por año. Nota: Estos son costes pagados por el gobierno."]

{"sheet":"U.K.","index":12,"n_rows":10,"n_cols":7,"rows_kept":10,"cut":false,"hidden":true,"merged":[[0,1,0,4]]}
[null,"Weights",null,null,null,null,"Terminology "]
[null,"Patients","Partners","Professionals","Payers/policy makers",null,"Definition "]
["Physical functioning",0.13452914798206275,8.563134978229317E-2,0.13011152416356875,0.11814345991561181,null,"acceptable physical functioning and being able to do daily activities without needing assistance (e.g., getting dressed, sitting down and getting up from a chair, taking your medications)"]
["Psychological well-being",0.1434977578475336,0.16835994194484757,0.13940520446096652,0.15330520393811536,null,"the absence of stress, worrying, listlessness, anxiety, and feeling down"]
["Social relations & participation",0.11322869955156949,0.12481857764876632,0.11802973977695166,0.12517580872011252,null,"having meaningful connections with others as desired"]
["Enjoyment of life",0.23991031390134526,0.26415094339622641,0.23420074349442377,0.22925457102672292,null,"having pleasure and happiness in life"]
["Resilience",0.12107623318385649,0.11756168359941944,0.11988847583643121,0.11954992967651196,null,"the ability to recover from or adjust to difficulties and to restore one’s balance"]
["Person-centeredness",7.9596412556053792E-2,8.4179970972423787E-2,9.2936802973977675E-2,0.10407876230661041,null,"care that matches an individual’s needs, capabilities, and preferences and where decisions are made jointly based on good information"]
["Continuity of care",0.10426008968609864,9.1436865021770675E-2,9.1078066914498129E-2,0.10689170182841069,null,"good collaboration, smooth transitions between caregivers, and no waste of time"]
["Total costs",6.3901345291479797E-2,6.3860667634252535E-2,7.4349442379182146E-2,4.3600562587904367E-2,null,"expressed as the total health- and social care costs per participant in the programme, per year. Note: These are costs paid for by the health insurer / government"]

{"sheet":"Mean all countries","index":13,"n_rows":20,"n_cols":8,"rows_kept":20,"cut":false,"hidden":false,"merged":[[0,1,0,5]]}
["Mean all countries","Weights",null,null,null,null,null,"Terminology "]
[null,"Patients","Partners","Professionals","Payers","Policy makers",null,"Definition "]
["Physical functioning",0.14946121149503958,0.10725679240352276,0.10422670655478028,0.13324180864939902,0.1248326523354194,null,"acceptable physical functioning and being able to do daily activities without needing assistance (e.g., getting dressed, sitting down and getting up from a chair, taking your medications)"]
["Psychological well-being",0.14073285333556815,0.14420061707124782,0.1434030591273576,0.16400503031344787,0.15221626689862405,null,"the absence of stress, worrying, listlessness, anxiety, and feeling down"]
["Social relations & participation",0.10513098388747329,0.1113080450305423,0.11043619983497728,0.11418471787709916,0.12013835864022102,null,"having meaningful connections with others as desired"]
["Enjoyment of life",0.21004698657032614,0.22527913247444575,0.20948889357964201,0.2450514425546623,0.23292432337965135,null,"having pleasure and happiness in life"]
["Resilience",0.14281047616208656,0.12409157288305207,0.12120446833025871,0.12145415626091427,0.1353861590054595,null,"the ability to recover from or adjust to difficulties and to restore one’s balance"]
["Person-centeredness",8.0761284050266474E-2,0.10120972997307898,0.11624534436783993,6.9221015111406117E-2,6.9863701901787589E-2,null,"care that matches an individual’s needs, capabilities, and preferences and where decisions are made jointly based on good information"]
["Continuity of care",0.1329641380421466,0.14879294569837384,0.14254748752440932,9.335405912829968E-2,0.11148213143595773,null,"good collaboration, smooth transitions between caregivers, and no waste of time"]
["Total costs",3.8092066457093052E-2,3.7861164465736459E-2,5.244784068073486E-2,5.9487770104771492E-2,5.3156406402879441E-2,null,"expressed as the total health- and social care costs per participant in the programme, per year. Note: These are costs paid for by the health insurer / government"]
[]
["Avalaible weights per country ","Patients","Partners","Professionals","Payers","Policy makers"]
["Austria","x","x","x"]
["Croatia","x","x"]
["Germany","x","x","x"]
["Hungary","x","x","x"]
["the Netherlands","x","x","x"]
["Norway","x","x","x","x","x"]
["Spain ","x","x","x"]
["United Kingdom","x","x","x","x","x"]

{"sheet":"Weights","index":14,"n_rows":32,"n_cols":53,"rows_kept":32,"cut":false,"hidden":true,"merged":[]}
["Absolute weights","AU P1","AU P2","AU P3","AU P4","AU P5",null,"HR P1","HR P2","HR P3","HR P4","HR P5",null,"DE P1","DE P2","DE P3","DE P4","DE P5",null,"HU P1","HU P2","HU P3","HU P4","HU P5",null,"NL P1","NL P2","NL P3","NL P4","NL P5",null,"NO P1","NO P2","NO P3","NO P4","NO P5",null,"ES P1","ES P2","ES P3","ES P4","ES P5",null,"UK P1","UK P2","UK P3","UK P4/5",null,"MEAN P1","MEAN P2","MEAN P3","MEAN P4","MEAN P5"]
["Physical functioning",{"$f":"IF('MCDA Tool'!C19=\"yes\",B24,0)","v":0},{"$f":"IF('MCDA Tool'!C19=\"yes\",C24,0)","v":0},{"$f":"IF('MCDA Tool'!C19=\"yes\",D24,0)","v":0},null,null,null,{"$f":"IF('MCDA Tool'!C19=\"yes\",H24,0)","v":0},{"$f":"IF('MCDA Tool'!C19=\"yes\",I24,0)","v":0},null,null,null,null,{"$f":"IF('MCDA Tool'!C19=\"yes\",N24,0)","v":0},{"$f":"IF('MCDA Tool'!C19=\"yes\",O24,0)","v":0},{"$f":"IF('MCDA Tool'!C19=\"yes\",P24,0)","v":0},null,null,null,{"$f":"IF('MCDA Tool'!C19=\"yes\",T24,0)","v":0},{"$f":"IF('MCDA Tool'!C19=\"yes\",U24,0)","v":0},{"$f":"IF('MCDA Tool'!C19=\"yes\",V24,0)","v":0},null,null,null,{"$f":"IF('MCDA Tool'!C19=\"yes\",Z24,0)","v":0},{"$f":"IF('MCDA Tool'!C19=\"yes\",AA24,0)","v":0},{"$f":"IF('MCDA Tool'!C19=\"yes\",AB24,0)","v":0},{"$f":"IF('MCDA Tool'!C19=\"yes\",AC24,0)","v":0},{"$f":"IF('MCDA Tool'!C19=\"yes\",AD24,0)","v":0},null,{"$f":"IF('MCDA Tool'!C19=\"yes\",AF24,0)","v":0},{"$f":"IF('MCDA Tool'!C19=\"yes\",AG24,0)","v":0},{"$f":"IF('MCDA Tool'!C19=\"yes\",AH24,0)","v":0},{"$f":"IF('MCDA Tool'!C19=\"yes\",AI24,0)","v":0},{"$f":"IF('MCDA Tool'!C19=\"yes\",AJ24,0)","v":0},null,{"$f":"IF('MCDA Tool'!C19=\"yes\",AL24,0)","v":0},{"$f":"IF('MCDA Tool'!C19=\"yes\",AM24,0)","v":0},{"$f":"IF('MCDA Tool'!C19=\"yes\",AN24,0)","v":0},null,null,null,{"$f":"IF('MCDA Tool'!C19=\"yes\",AR24,0)","v":0},{"$f":"IF('MCDA Tool'!C19=\"yes\",AS24,0)","v":0},{"$f":"IF('MCDA Tool'!C19=\"yes\",AT24,0)","v":0},{"$f":"IF('MCDA Tool'!C19=\"yes\",AU24,0)","v":0},null,{"$f":"IF('MCDA Tool'!C19=\"yes\",AW24,0)","v":0},{"$f":"IF('MCDA Tool'!C19=\"yes\",AX24,0)","v":0},{"$f":"IF('MCDA Tool'!C19=\"yes\",AY24,0)","v":0},{"$f":"IF('MCDA Tool'!C19=\"yes\",AZ24,0)","v":0},{"$f":"IF('MCDA Tool'!C19=\"yes\",BA24,0)","v":0}]
["Psychological well-being",{"$f":"IF('MCDA Tool'!C20=\"yes\",B25,0)","v":0},{"$f":"IF('MCDA Tool'!C20=\"yes\",C25,0)","v":0},{"$f":"IF('MCDA Tool'!C20=\"yes\",D25,0)","v":0},null,null,null,{"$f":"IF('MCDA Tool'!C20=\"yes\",H25,0)","v":0},{"$f":"IF('MCDA Tool'!C20=\"yes\",I25,0)","v":0},null,null,null,null,{"$f":"IF('MCDA Tool'!C20=\"yes\",N25,0)","v":0},{"$f":"IF('MCDA Tool'!C20=\"yes\",O25,0)","v":0},{"$f":"IF('MCDA Tool'!C20=\"yes\",P25,0)","v":0},null,null,null,{"$f":"IF('MCDA Tool'!C20=\"yes\",T25,0)","v":0},{"$f":"IF('MCDA Tool'!C20=\"yes\",U25,0)","v":0},{"$f":"IF('MCDA Tool'!C20=\"yes\",V25,0)","v":0},null,null,null,{"$f":"IF('MCDA Tool'!C20=\"yes\",Z25,0)","v":0},{"$f":"IF('MCDA Tool'!C20=\"yes\",AA25,0)","v":0},{"$f":"IF('MCDA Tool'!C20=\"yes\",AB25,0)","v":0},{"$f":"IF('MCDA Tool'!C20=\"yes\",AC25,0)","v":0},{"$f":"IF('MCDA Tool'!C20=\"yes\",AD25,0)","v":0},null,{"$f":"IF('MCDA Tool'!C20=\"yes\",AF25,0)","v":0},{"$f":"IF('MCDA Tool'!C20=\"yes\",AG25,0)","v":0},{"$f":"IF('MCDA Tool'!C20=\"yes\",AH25,0)","v":0},{"$f":"IF('MCDA Tool'!C20=\"yes\",AI25,0)","v":0},{"$f":"IF('MCDA Tool'!C20=\"yes\",AJ25,0)","v":0},null,{"$f":"IF('MCDA Tool'!C20=\"yes\",AL25,0)","v":0},{"$f":"IF('MCDA Tool'!C20=\"yes\",AM25,0)","v":0},{"$f":"IF('MCDA Tool'!C20=\"yes\",AN25,0)","v":0},null,null,null,{"$f":"IF('MCDA Tool'!C20=\"yes\",AR25,0)","v":0},{"$f":"IF('MCDA Tool'!C20=\"yes\",AS25,0)","v":0},{"$f":"IF('MCDA Tool'!C20=\"yes\",AT25,0)","v":0},{"$f":"IF('MCDA Tool'!C20=\"yes\",AU25,0)","v":0},null,{"$f":"IF('MCDA Tool'!C20=\"yes\",AW25,0)","v":0},{"$f":"IF('MCDA Tool'!C20=\"yes\",AX25,0)","v":0},{"$f":"IF('MCDA Tool'!C20=\"yes\",AY25,0)","v":0},{"$f":"IF('MCDA Tool'!C20=\"yes\",AZ25,0)","v":0},{"$f":"IF('MCDA Tool'!C20=\"yes\",BA25,0)","v":0}]
["Social relations & particpation",{"$f":"IF('MCDA Tool'!C21=\"yes\",B26,0)","v":0},{"$f":"IF('MCDA Tool'!C21=\"yes\",C26,0)","v":0},{"$f":"IF('MCDA Tool'!C21=\"yes\",D26,0)","v":0},null,null,null,{"$f":"IF('MCDA Tool'!C21=\"yes\",H26,0)","v":0},{"$f":"IF('MCDA Tool'!C21=\"yes\",I26,0)","v":0},null,null,null,null,{"$f":"IF('MCDA Tool'!C21=\"yes\",N26,0)","v":0},{"$f":"IF('MCDA Tool'!C21=\"yes\",O26,0)","v":0},{"$f":"IF('MCDA Tool'!C21=\"yes\",P26,0)","v":0},null,null,null,{"$f":"IF('MCDA Tool'!C21=\"yes\",T26,0)","v":0},{"$f":"IF('MCDA Tool'!C21=\"yes\",U26,0)","v":0},{"$f":"IF('MCDA Tool'!C21=\"yes\",V26,0)","v":0},null,null,null,{"$f":"IF('MCDA Tool'!C21=\"yes\",Z26,0)","v":0},{"$f":"IF('MCDA Tool'!C21=\"yes\",AA26,0)","v":0},{"$f":"IF('MCDA Tool'!C21=\"yes\",AB26,0)","v":0},{"$f":"IF('MCDA Tool'!C21=\"yes\",AC26,0)","v":0},{"$f":"IF('MCDA Tool'!C21=\"yes\",AD26,0)","v":0},null,{"$f":"IF('MCDA Tool'!C21=\"yes\",AF26,0)","v":0},{"$f":"IF('MCDA Tool'!C21=\"yes\",AG26,0)","v":0},{"$f":"IF('MCDA Tool'!C21=\"yes\",AH26,0)","v":0},{"$f":"IF('MCDA Tool'!C21=\"yes\",AI26,0)","v":0},{"$f":"IF('MCDA Tool'!C21=\"yes\",AJ26,0)","v":0},null,{"$f":"IF('MCDA Tool'!C21=\"yes\",AL26,0)","v":0},{"$f":"IF('MCDA Tool'!C21=\"yes\",AM26,0)","v":0},{"$f":"IF('MCDA Tool'!C21=\"yes\",AN26,0)","v":0},null,null,null,{"$f":"IF('MCDA Tool'!C21=\"yes\",AR26,0)","v":0},{"$f":"IF('MCDA Tool'!C21=\"yes\",AS26,0)","v":0},{"$f":"IF('MCDA Tool'!C21=\"yes\",AT26,0)","v":0},{"$f":"IF('MCDA Tool'!C21=\"yes\",AU26,0)","v":0},null,{"$f":"IF('MCDA Tool'!C21=\"yes\",AW26,0)","v":0},{"$f":"IF('MCDA Tool'!C21=\"yes\",AX26,0)","v":0},{"$f":"IF('MCDA Tool'!C21=\"yes\",AY26,0)","v":0},{"$f":"IF('MCDA Tool'!C21=\"yes\",AZ26,0)","v":0},{"$f":"IF('MCDA Tool'!C21=\"yes\",BA26,0)","v":0}]
["Enjoyment of life",{"$f":"IF('MCDA Tool'!C22=\"yes\",B27,0)","v":0},{"$f":"IF('MCDA Tool'!C22=\"yes\",C27,0)","v":0},{"$f":"IF('MCDA Tool'!C22=\"yes\",D27,0)","v":0},null,null,null,{"$f":"IF('MCDA Tool'!C22=\"yes\",H27,0)","v":0},{"$f":"IF('MCDA Tool'!C22=\"yes\",I27,0)","v":0},null,null,null,null,{"$f":"IF('MCDA Tool'!C22=\"yes\",N27,0)","v":0},{"$f":"IF('MCDA Tool'!C22=\"yes\",O27,0)","v":0},{"$f":"IF('MCDA Tool'!C22=\"yes\",P27,0)","v":0},null,null,null,{"$f":"IF('MCDA Tool'!C22=\"yes\",T27,0)","v":0},{"$f":"IF('MCDA Tool'!C22=\"yes\",U27,0)","v":0},{"$f":"IF('MCDA Tool'!C22=\"yes\",V27,0)","v":0},null,null,null,{"$f":"IF('MCDA Tool'!C22=\"yes\",Z27,0)","v":0},{"$f":"IF('MCDA Tool'!C22=\"yes\",AA27,0)","v":0},{"$f":"IF('MCDA Tool'!C22=\"yes\",AB27,0)","v":0},{"$f":"IF('MCDA Tool'!C22=\"yes\",AC27,0)","v":0},{"$f":"IF('MCDA Tool'!C22=\"yes\",AD27,0)","v":0},null,{"$f":"IF('MCDA Tool'!C22=\"yes\",AF27,0)","v":0},{"$f":"IF('MCDA Tool'!C22=\"yes\",AG27,0)","v":0},{"$f":"IF('MCDA Tool'!C22=\"yes\",AH27,0)","v":0},{"$f":"IF('MCDA Tool'!C22=\"yes\",AI27,0)","v":0},{"$f":"IF('MCDA Tool'!C22=\"yes\",AJ27,0)","v":0},null,{"$f":"IF('MCDA Tool'!C22=\"yes\",AL27,0)","v":0},{"$f":"IF('MCDA Tool'!C22=\"yes\",AM27,0)","v":0},{"$f":"IF('MCDA Tool'!C22=\"yes\",AN27,0)","v":0},null,null,null,{"$f":"IF('MCDA Tool'!C22=\"yes\",AR27,0)","v":0},{"$f":"IF('MCDA Tool'!C22=\"yes\",AS27,0)","v":0},{"$f":"IF('MCDA Tool'!C22=\"yes\",AT27,0)","v":0},{"$f":"IF('MCDA Tool'!C22=\"yes\",AU27,0)","v":0},null,{"$f":"IF('MCDA Tool'!C22=\"yes\",AW27,0)","v":0},{"$f":"IF('MCDA Tool'!C22=\"yes\",AX27,0)","v":0},{"$f":"IF('MCDA Tool'!C22=\"yes\",AY27,0)","v":0},{"$f":"IF('MCDA Tool'!C22=\"yes\",AZ27,0)","v":0},{"$f":"IF('MCDA Tool'!C22=\"yes\",BA27,0)","v":0}]
["Resilience",{"$f":"IF('MCDA Tool'!C23=\"yes\",B28,0)","v":0},{"$f":"IF('MCDA Tool'!C23=\"yes\",C28,0)","v":0},{"$f":"IF('MCDA Tool'!C23=\"yes\",D28,0)","v":0},null,null,null,{"$f":"IF('MCDA Tool'!C23=\"yes\",H28,0)","v":0},{"$f":"IF('MCDA Tool'!C23=\"yes\",I28,0)","v":0},null,null,null,null,{"$f":"IF('MCDA Tool'!C23=\"yes\",N28,0)","v":0},{"$f":"IF('MCDA Tool'!C23=\"yes\",O28,0)","v":0},{"$f":"IF('MCDA Tool'!C23=\"yes\",P28,0)","v":0},null,null,null,{"$f":"IF('MCDA Tool'!C23=\"yes\",T28,0)","v":0},{"$f":"IF('MCDA Tool'!C23=\"yes\",U28,0)","v":0},{"$f":"IF('MCDA Tool'!C23=\"yes\",V28,0)","v":0},null,null,null,{"$f":"IF('MCDA Tool'!C23=\"yes\",Z28,0)","v":0},{"$f":"IF('MCDA Tool'!C23=\"yes\",AA28,0)","v":0},{"$f":"IF('MCDA Tool'!C23=\"yes\",AB28,0)","v":0},{"$f":"IF('MCDA Tool'!C23=\"yes\",AC28,0)","v":0},{"$f":"IF('MCDA Tool'!C23=\"yes\",AD28,0)","v":0},null,{"$f":"IF('MCDA Tool'!C23=\"yes\",AF28,0)","v":0},{"$f":"IF('MCDA Tool'!C23=\"yes\",AG28,0)","v":0},{"$f":"IF('MCDA Tool'!C23=\"yes\",AH28,0)","v":0},{"$f":"IF('MCDA Tool'!C23=\"yes\",AI28,0)","v":0},{"$f":"IF('MCDA Tool'!C23=\"yes\",AJ28,0)","v":0},null,{"$f":"IF('MCDA Tool'!C23=\"yes\",AL28,0)","v":0},{"$f":"IF('MCDA Tool'!C23=\"yes\",AM28,0)","v":0},{"$f":"IF('MCDA Tool'!C23=\"yes\",AN28,0)","v":0},null,null,null,{"$f":"IF('MCDA Tool'!C23=\"yes\",AR28,0)","v":0},{"$f":"IF('MCDA Tool'!C23=\"yes\",AS28,0)","v":0},{"$f":"IF('MCDA Tool'!C23=\"yes\",AT28,0)","v":0},{"$f":"IF('MCDA Tool'!C23=\"yes\",AU28,0)","v":0},null,{"$f":"IF('MCDA Tool'!C23=\"yes\",AW28,0)","v":0},{"$f":"IF('MCDA Tool'!C23=\"yes\",AX28,0)","v":0},{"$f":"IF('MCDA Tool'!C23=\"yes\",AY28,0)","v":0},{"$f":"IF('MCDA Tool'!C23=\"yes\",AZ28,0)","v":0},{"$f":"IF('MCDA Tool'!C23=\"yes\",BA28,0)","v":0}]
["Person-centeredness",{"$f":"IF('MCDA Tool'!C24=\"yes\",B29,0)","v":0},{"$f":"IF('MCDA Tool'!C24=\"yes\",C29,0)","v":0},{"$f":"IF('MCDA Tool'!C24=\"yes\",D29,0)","v":0},null,null,null,{"$f":"IF('MCDA Tool'!C24=\"yes\",H29,0)","v":0},{"$f":"IF('MCDA Tool'!C24=\"yes\",I29,0)","v":0},null,null,null,null,{"$f":"IF('MCDA Tool'!C24=\"yes\",N29,0)","v":0},{"$f":"IF('MCDA Tool'!C24=\"yes\",O29,0)","v":0},{"$f":"IF('MCDA Tool'!C24=\"yes\",P29,0)","v":0},null,null,null,{"$f":"IF('MCDA Tool'!C24=\"yes\",T29,0)","v":0},{"$f":"IF('MCDA Tool'!C24=\"yes\",U29,0)","v":0},{"$f":"IF('MCDA Tool'!C24=\"yes\",V29,0)","v":0},null,null,null,{"$f":"IF('MCDA Tool'!C24=\"yes\",Z29,0)","v":0},{"$f":"IF('MCDA Tool'!C24=\"yes\",AA29,0)","v":0},{"$f":"IF('MCDA Tool'!C24=\"yes\",AB29,0)","v":0},{"$f":"IF('MCDA Tool'!C24=\"yes\",AC29,0)","v":0},{"$f":"IF('MCDA Tool'!C24=\"yes\",AD29,0)","v":0},null,{"$f":"IF('MCDA Tool'!C24=\"yes\",AF29,0)","v":0},{"$f":"IF('MCDA Tool'!C24=\"yes\",AG29,0)","v":0},{"$f":"IF('MCDA Tool'!C24=\"yes\",AH29,0)","v":0},{"$f":"IF('MCDA Tool'!C24=\"yes\",AI29,0)","v":0},{"$f":"IF('MCDA Tool'!C24=\"yes\",AJ29,0)","v":0},null,{"$f":"IF('MCDA Tool'!C24=\"yes\",AL29,0)","v":0},{"$f":"IF('MCDA Tool'!C24=\"yes\",AM29,0)","v":0},{"$f":"IF('MCDA Tool'!C24=\"yes\",AN29,0)","v":0},null,null,null,{"$f":"IF('MCDA Tool'!C24=\"yes\",AR29,0)","v":0},{"$f":"IF('MCDA Tool'!C24=\"yes\",AS29,0)","v":0},{"$f":"IF('MCDA Tool'!C24=\"yes\",AT29,0)","v":0},{"$f":"IF('MCDA Tool'!C24=\"yes\",AU29,0)","v":0},null,{"$f":"IF('MCDA Tool'!C24=\"yes\",AW29,0)","v":0},{"$f":"IF('MCDA Tool'!C24=\"yes\",AX29,0)","v":0},{"$f":"IF('MCDA Tool'!C24=\"yes\",AY29,0)","v":0},{"$f":"IF('MCDA Tool'!C24=\"yes\",AZ29,0)","v":0},{"$f":"IF('MCDA Tool'!C24=\"yes\",BA29,0)","v":0}]
["Continuity of care",{"$f":"IF('MCDA Tool'!C25=\"yes\",B30,0)","v":0},{"$f":"IF('MCDA Tool'!C25=\"yes\",C30,0)","v":0},{"$f":"IF('MCDA Tool'!C25=\"yes\",D30,0)","v":0},null,null,null,{"$f":"IF('MCDA Tool'!C25=\"yes\",H30,0)","v":0},{"$f":"IF('MCDA Tool'!C25=\"yes\",I30,0)","v":0},null,null,null,null,{"$f":"IF('MCDA Tool'!C25=\"yes\",N30,0)","v":0},{"$f":"IF('MCDA Tool'!C25=\"yes\",O30,0)","v":0},{"$f":"IF('MCDA Tool'!C25=\"yes\",P30,0)","v":0},null,null,null,{"$f":"IF('MCDA Tool'!C25=\"yes\",T30,0)","v":0},{"$f":"IF('MCDA Tool'!C25=\"yes\",U30,0)","v":0},{"$f":"IF('MCDA Tool'!C25=\"yes\",V30,0)","v":0},null,null,null,{"$f":"IF('MCDA Tool'!C25=\"yes\",Z30,0)","v":0},{"$f":"IF('MCDA Tool'!C25=\"yes\",AA30,0)","v":0},{"$f":"IF('MCDA Tool'!C25=\"yes\",AB30,0)","v":0},{"$f":"IF('MCDA Tool'!C25=\"yes\",AC30,0)","v":0},{"$f":"IF('MCDA Tool'!C25=\"yes\",AD30,0)","v":0},null,{"$f":"IF('MCDA Tool'!C25=\"yes\",AF30,0)","v":0},{"$f":"IF('MCDA Tool'!C25=\"yes\",AG30,0)","v":0},{"$f":"IF('MCDA Tool'!C25=\"yes\",AH30,0)","v":0},{"$f":"IF('MCDA Tool'!C25=\"yes\",AI30,0)","v":0},{"$f":"IF('MCDA Tool'!C25=\"yes\",AJ30,0)","v":0},null,{"$f":"IF('MCDA Tool'!C25=\"yes\",AL30,0)","v":0},{"$f":"IF('MCDA Tool'!C25=\"yes\",AM30,0)","v":0},{"$f":"IF('MCDA Tool'!C25=\"yes\",AN30,0)","v":0},null,null,null,{"$f":"IF('MCDA Tool'!C25=\"yes\",AR30,0)","v":0},{"$f":"IF('MCDA Tool'!C25=\"yes\",AS30,0)","v":0},{"$f":"IF('MCDA Tool'!C25=\"yes\",AT30,0)","v":0},{"$f":"IF('MCDA Tool'!C25=\"yes\",AU30,0)","v":0},null,{"$f":"IF('MCDA Tool'!C25=\"yes\",AW30,0)","v":0},{"$f":"IF('MCDA Tool'!C25=\"yes\",AX30,0)","v":0},{"$f":"IF('MCDA Tool'!C25=\"yes\",AY30,0)","v":0},{"$f":"IF('MCDA Tool'!C25=\"yes\",AZ30,0)","v":0},{"$f":"IF('MCDA Tool'!C25=\"yes\",BA30,0)","v":0}]
["Total costs",{"$f":"IF('MCDA Tool'!C26=\"yes\",B31,0)","v":0},{"$f":"IF('MCDA Tool'!C26=\"yes\",C31,0)","v":0},{"$f":"IF('MCDA Tool'!C26=\"yes\",D31,0)","v":0},null,null,null,{"$f":"IF('MCDA Tool'!C26=\"yes\",H31,0)","v":0},{"$f":"IF('MCDA Tool'!C26=\"yes\",I31,0)","v":0},null,null,null,null,{"$f":"IF('MCDA Tool'!C26=\"yes\",N31,0)","v":0},{"$f":"IF('MCDA Tool'!C26=\"yes\",O31,0)","v":0},{"$f":"IF('MCDA Tool'!C26=\"yes\",P31,0)","v":0},null,null,null,{"$f":"IF('MCDA Tool'!C26=\"yes\",T31,0)","v":0},{"$f":"IF('MCDA Tool'!C26=\"yes\",U31,0)","v":0},{"$f":"IF('MCDA Tool'!C26=\"yes\",V31,0)","v":0},null,null,null,{"$f":"IF('MCDA Tool'!C26=\"yes\",Z31,0)","v":0},{"$f":"IF('MCDA Tool'!C26=\"yes\",AA31,0)","v":0},{"$f":"IF('MCDA Tool'!C26=\"yes\",AB31,0)","v":0},{"$f":"IF('MCDA Tool'!C26=\"yes\",AC31,0)","v":0},{"$f":"IF('MCDA Tool'!C26=\"yes\",AD31,0)","v":0},null,{"$f":"IF('MCDA Tool'!C26=\"yes\",AF31,0)","v":0},{"$f":"IF('MCDA Tool'!C26=\"yes\",AG31,0)","v":0},{"$f":"IF('MCDA Tool'!C26=\"yes\",AH31,0)","v":0},{"$f":"IF('MCDA Tool'!C26=\"yes\",AI31,0)","v":0},{"$f":"IF('MCDA Tool'!C26=\"yes\",AJ31,0)","v":0},null,{"$f":"IF('MCDA Tool'!C26=\"yes\",AL31,0)","v":0},{"$f":"IF('MCDA Tool'!C26=\"yes\",AM31,0)","v":0},{"$f":"IF('MCDA Tool'!C26=\"yes\",AN31,0)","v":0},null,null,null,{"$f":"IF('MCDA Tool'!C26=\"yes\",AR31,0)","v":0},{"$f":"IF('MCDA Tool'!C26=\"yes\",AS31,0)","v":0},{"$f":"IF('MCDA Tool'!C26=\"yes\",AT31,0)","v":0},{"$f":"IF('MCDA Tool'!C26=\"yes\",AU31,0)","v":0},null,{"$f":"IF('MCDA Tool'!C26=\"yes\",AW31,0)","v":0},{"$f":"IF('MCDA Tool'!C26=\"yes\",AX31,0)","v":0},{"$f":"IF('MCDA Tool'!C26=\"yes\",AY31,0)","v":0},{"$f":"IF('MCDA Tool'!C26=\"yes\",AZ31,0)","v":0},{"$f":"IF('MCDA Tool'!C26=\"yes\",BA31,0)","v":0}]
[null,{"$f":"SUM(B2:B9)","v":0},{"$f":"SUM(C2:C9)","v":0},{"$f":"SUM(D2:D9)","v":0},null,null,null,{"$f":"SUM(H2:H9)","v":0},{"$f":"SUM(I2:I9)","v":0},null,null,null,null,{"$f":"SUM(N2:N9)","v":0},{"$f":"SUM(O2:O9)","v":0},{"$f":"SUM(P2:P9)","v":0},null,null,null,{"$f":"SUM(T2:T9)","v":0},{"$f":"SUM(U2:U9)","v":0},{"$f":"SUM(V2:V9)","v":0},null,null,null,{"$f":"SUM(Z2:Z9)","v":0},{"$f":"SUM(AA2:AA9)","v":0},{"$f":"SUM(AB2:AB9)","v":0},{"$f":"SUM(AC2:AC9)","v":0},{"$f":"SUM(AD2:AD9)","v":0},null,{"$f":"SUM(AF2:AF9)","v":0},{"$f":"SUM(AG2:AG9)","v":0},{"$f":"SUM(AH2:AH9)","v":0},{"$f":"SUM(AI2:AI9)","v":0},{"$f":"SUM(AJ2:AJ9)","v":0},null,{"$f":"SUM(AL2:AL9)","v":0},{"$f":"SUM(AM2:AM9)","v":0},{"$f":"SUM(AN2:AN9)","v":0},null,null,null,{"$f":"SUM(AR2:AR9)","v":0},{"$f":"SUM(AS2:AS9)","v":0},{"$f":"SUM(AT2:AT9)","v":0},{"$f":"SUM(AU2:AU9)","v":0},null,{"$f":"SUM(AW2:AW9)","v":0},0,0,0,0]
[]
["Relative weights","AU P1","AU P2","AU P3","AU P4","AU P5",null,"HR P1","HR P2","HR P3","HR P4","HR P5",null,"DE P1","DE P2","DE P3","DE P4","DE P5",null,"HU P1","HU P2","HU P3","HU P4","HU P5",null,"NL P1","NL P2","NL P3","NL P4","NL P5",null,"NO P1","NO P2","NO P3","NO P4","NO P5",null,"ES P1","ES P2","ES P3","ES P4","ES P5",null,"UK P1","UK P2","UK P3","UK P4/5",null,"MEAN P1","MEAN P2","MEAN P3","MEAN P4","MEAN P5"]
["Physical functioning",{"$f":"B2/SUM($B$2:$B$9)","v":{"$error":"#DIV/0!"}},{"$f":"C2/SUM($C$2:$C$9)","v":{"$error":"#DIV/0!"}},{"$f":"D2/SUM($D$2:$D$9)","v":{"$error":"#DIV/0!"}},null,null,null,{"$f":"H2/SUM($H$2:$H$9)","v":{"$error":"#DIV/0!"}},{"$f":"I2/SUM($I$2:$I$9)","v":{"$error":"#DIV/0!"}},null,null,null,null,{"$f":"N2/SUM($N$2:$N$9)","v":{"$error":"#DIV/0!"}},{"$f":"O2/SUM($O$2:$O$9)","v":{"$error":"#DIV/0!"}},{"$f":"P2/SUM($P$2:$P$9)","v":{"$error":"#DIV/0!"}},null,null,null,{"$f":"T2/SUM($T$2:$T$9)","v":{"$error":"#DIV/0!"}},{"$f":"U2/SUM($U$2:$U$9)","v":{"$error":"#DIV/0!"}},{"$f":"V2/SUM($V$2:$V$9)","v":{"$error":"#DIV/0!"}},null,null,null,{"$f":"Z2/SUM($Z$2:$Z$9)","v":{"$error":"#DIV/0!"}},{"$f":"AA2/SUM($AA$2:$AA$9)","v":{"$error":"#DIV/0!"}},{"$f":"AB2/SUM($AB$2:$AB$9)","v":{"$error":"#DIV/0!"}},{"$f":"AC2/SUM($AC$2:$AC$9)","v":{"$error":"#DIV/0!"}},{"$f":"AD2/SUM($AD$2:$AD$9)","v":{"$error":"#DIV/0!"}},null,{"$f":"AF2/SUM($AF$2:$AF$9)","v":{"$error":"#DIV/0!"}},{"$f":"AG2/SUM($AG$2:$AG$9)","v":{"$error":"#DIV/0!"}},{"$f":"AH2/SUM($AH$2:$AH$9)","v":{"$error":"#DIV/0!"}},{"$f":"AI2/SUM($AI$2:$AI$9)","v":{"$error":"#DIV/0!"}},{"$f":"AJ2/SUM($AJ$2:$AJ$9)","v":{"$error":"#DIV/0!"}},null,{"$f":"AL2/SUM($AL$2:$AL$9)","v":{"$error":"#DIV/0!"}},{"$f":"AM2/SUM($AM$2:$AM$9)","v":{"$error":"#DIV/0!"}},{"$f":"AN2/SUM($AN$2:$AN$9)","v":{"$error":"#DIV/0!"}},null,null,null,{"$f":"AR2/SUM($AR$2:$AR$9)","v":{"$error":"#DIV/0!"}},{"$f":"AS2/SUM($AS$2:$AS$9)","v":{"$error":"#DIV/0!"}},{"$f":"AT2/SUM($AT$2:$AT$9)","v":{"$error":"#DIV/0!"}},{"$f":"AU2/SUM($AU$2:$AU$9)","v":{"$error":"#DIV/0!"}},null,{"$f":"AW2/SUM($AW$2:$AW$9)","v":{"$error":"#DIV/0!"}},{"$f":"AX2/SUM($AX$2:$AX$9)","v":{"$error":"#DIV/0!"}},{"$f":"AY2/SUM($AY$2:$AY$9)","v":{"$error":"#DIV/0!"}},{"$f":"AZ2/SUM($AZ$2:$AZ$9)","v":{"$error":"#DIV/0!"}},{"$f":"BA2/SUM($BA$2:$BA$9)","v":{"$error":"#DIV/0!"}}]
["Psychological well-being",{"$f":"B3/SUM($B$2:$B$9)","v":{"$error":"#DIV/0!"}},{"$f":"C3/SUM($C$2:$C$9)","v":{"$error":"#DIV/0!"}},{"$f":"D3/SUM($D$2:$D$9)","v":{"$error":"#DIV/0!"}},null,null,null,{"$f":"H3/SUM($H$2:$H$9)","v":{"$error":"#DIV/0!"}},{"$f":"I3/SUM($I$2:$I$9)","v":{"$error":"#DIV/0!"}},null,null,null,null,{"$f":"N3/SUM($N$2:$N$9)","v":{"$error":"#DIV/0!"}},{"$f":"O3/SUM($O$2:$O$9)","v":{"$error":"#DIV/0!"}},{"$f":"P3/SUM($P$2:$P$9)","v":{"$error":"#DIV/0!"}},null,null,null,{"$f":"T3/SUM($T$2:$T$9)","v":{"$error":"#DIV/0!"}},{"$f":"U3/SUM($U$2:$U$9)","v":{"$error":"#DIV/0!"}},{"$f":"V3/SUM($V$2:$V$9)","v":{"$error":"#DIV/0!"}},null,null,null,{"$f":"Z3/SUM($Z$2:$Z$9)","v":{"$error":"#DIV/0!"}},{"$f":"AA3/SUM($AA$2:$AA$9)","v":{"$error":"#DIV/0!"}},{"$f":"AB3/SUM($AB$2:$AB$9)","v":{"$error":"#DIV/0!"}},{"$f":"AC3/SUM($AC$2:$AC$9)","v":{"$error":"#DIV/0!"}},{"$f":"AD3/SUM($AD$2:$AD$9)","v":{"$error":"#DIV/0!"}},null,{"$f":"AF3/SUM($AF$2:$AF$9)","v":{"$error":"#DIV/0!"}},{"$f":"AG3/SUM($AG$2:$AG$9)","v":{"$error":"#DIV/0!"}},{"$f":"AH3/SUM($AH$2:$AH$9)","v":{"$error":"#DIV/0!"}},{"$f":"AI3/SUM($AI$2:$AI$9)","v":{"$error":"#DIV/0!"}},{"$f":"AJ3/SUM($AJ$2:$AJ$9)","v":{"$error":"#DIV/0!"}},null,{"$f":"AL3/SUM($AL$2:$AL$9)","v":{"$error":"#DIV/0!"}},{"$f":"AM3/SUM($AM$2:$AM$9)","v":{"$error":"#DIV/0!"}},{"$f":"AN3/SUM($AN$2:$AN$9)","v":{"$error":"#DIV/0!"}},null,null,null,{"$f":"AR3/SUM($AR$2:$AR$9)","v":{"$error":"#DIV/0!"}},{"$f":"AS3/SUM($AS$2:$AS$9)","v":{"$error":"#DIV/0!"}},{"$f":"AT3/SUM($AT$2:$AT$9)","v":{"$error":"#DIV/0!"}},{"$f":"AU3/SUM($AU$2:$AU$9)","v":{"$error":"#DIV/0!"}},null,{"$f":"AW3/SUM($AW$2:$AW$9)","v":{"$error":"#DIV/0!"}},{"$f":"AX3/SUM($AX$2:$AX$9)","v":{"$error":"#DIV/0!"}},{"$f":"AY3/SUM($AY$2:$AY$9)","v":{"$error":"#DIV/0!"}},{"$f":"AZ3/SUM($AZ$2:$AZ$9)","v":{"$error":"#DIV/0!"}},{"$f":"BA3/SUM($BA$2:$BA$9)","v":{"$error":"#DIV/0!"}}]
["Social relations & particpation",{"$error":"#DIV/0!"},{"$error":"#DIV/0!"},{"$error":"#DIV/0!"},null,null,null,{"$error":"#DIV/0!"},{"$error":"#DIV/0!"},null,null,null,null,{"$error":"#DIV/0!"},{"$error":"#DIV/0!"},{"$error":"#DIV/0!"},null,null,null,{"$error":"#DIV/0!"},{"$error":"#DIV/0!"},{"$error":"#DIV/0!"},null,null,null,{"$error":"#DIV/0!"},{"$error":"#DIV/0!"},{"$error":"#DIV/0!"},{"$error":"#DIV/0!"},{"$f":"AD4/SUM($AD$2:$AD$9)","v":{"$error":"#DIV/0!"}},null,{"$error":"#DIV/0!"},{"$error":"#DIV/0!"},{"$error":"#DIV/0!"},{"$error":"#DIV/0!"},{"$error":"#DIV/0!"},null,{"$error":"#DIV/0!"},{"$error":"#DIV/0!"},{"$error":"#DIV/0!"},null,null,null,{"$error":"#DIV/0!"},{"$error":"#DIV/0!"},{"$error":"#DIV/0!"},{"$error":"#DIV/0!"},null,{"$error":"#DIV/0!"},{"$error":"#DIV/0!"},{"$error":"#DIV/0!"},{"$error":"#DIV/0!"},{"$error":"#DIV/0!"}]
["Enjoyment of life",{"$error":"#DIV/0!"},{"$error":"#DIV/0!"},{"$error":"#DIV/0!"},null,null,null,{"$error":"#DIV/0!"},{"$error":"#DIV/0!"},null,null,null,null,{"$error":"#DIV/0!"},{"$error":"#DIV/0!"},{"$error":"#DIV/0!"},null,null,null,{"$error":"#DIV/0!"},{"$error":"#DIV/0!"},{"$error":"#DIV/0!"},null,null,null,{"$error":"#DIV/0!"},{"$error":"#DIV/0!"},{"$error":"#DIV/0!"},{"$error":"#DIV/0!"},{"$error":"#DIV/0!"},null,{"$error":"#DIV/0!"},{"$error":"#DIV/0!"},{"$error":"#DIV/0!"},{"$error":"#DIV/0!"},{"$error":"#DIV/0!"},null,{"$error":"#DIV/0!"},{"$error":"#DIV/0!"},{"$error":"#DIV/0!"},null,null,null,{"$error":"#DIV/0!"},{"$error":"#DIV/0!"},{"$error":"#DIV/0!"},{"$error":"#DIV/0!"},null,{"$error":"#DIV/0!"},{"$error":"#DIV/0!"},{"$error":"#DIV/0!"},{"$error":"#DIV/0!"},{"$error":"#DIV/0!"}]
["Resilience",{"$error":"#DIV/0!"},{"$error":"#DIV/0!"},{"$error":"#DIV/0!"},null,null,null,{"$error":"#DIV/0!"},{"$error":"#DIV/0!"},null,null,null,null,{"$error":"#DIV/0!"},{"$error":"#DIV/0!"},{"$error":"#DIV/0!"},null,null,null,{"$error":"#DIV/0!"},{"$error":"#DIV/0!"},{"$error":"#DIV/0!"},null,null,null,{"$error":"#DIV/0!"},{"$error":"#DIV/0!"},{"$error":"#DIV/0!"},{"$error":"#DIV/0!"},{"$error":"#DIV/0!"},null,{"$error":"#DIV/0!"},{"$error":"#DIV/0!"},{"$error":"#DIV/0!"},{"$error":"#DIV/0!"},{"$error":"#DIV/0!"},null,{"$error":"#DIV/0!"},{"$error":"#DIV/0!"},{"$error":"#DIV/0!"},null,null,null,{"$error":"#DIV/0!"},{"$error":"#DIV/0!"},{"$error":"#DIV/0!"},{"$error":"#DIV/0!"},null,{"$error":"#DIV/0!"},{"$error":"#DIV/0!"},{"$error":"#DIV/0!"},{"$error":"#DIV/0!"},{"$error":"#DIV/0!"}]
["Person-centeredness",{"$error":"#DIV/0!"},{"$error":"#DIV/0!"},{"$error":"#DIV/0!"},null,null,null,{"$error":"#DIV/0!"},{"$error":"#DIV/0!"},null,null,null,null,{"$error":"#DIV/0!"},{"$error":"#DIV/0!"},{"$error":"#DIV/0!"},null,null,null,{"$error":"#DIV/0!"},{"$error":"#DIV/0!"},{"$error":"#DIV/0!"},null,null,null,{"$error":"#DIV/0!"},{"$error":"#DIV/0!"},{"$error":"#DIV/0!"},{"$error":"#DIV/0!"},{"$error":"#DIV/0!"},null,{"$error":"#DIV/0!"},{"$error":"#DIV/0!"},{"$error":"#DIV/0!"},{"$error":"#DIV/0!"},{"$error":"#DIV/0!"},null,{"$error":"#DIV/0!"},{"$error":"#DIV/0!"},{"$error":"#DIV/0!"},null,null,null,{"$error":"#DIV/0!"},{"$error":"#DIV/0!"},{"$error":"#DIV/0!"},{"$error":"#DIV/0!"},null,{"$error":"#DIV/0!"},{"$error":"#DIV/0!"},{"$error":"#DIV/0!"},{"$error":"#DIV/0!"},{"$error":"#DIV/0!"}]
["Continuity of care",{"$error":"#DIV/0!"},{"$error":"#DIV/0!"},{"$error":"#DIV/0!"},null,null,null,{"$error":"#DIV/0!"},{"$error":"#DIV/0!"},null,null,null,null,{"$error":"#DIV/0!"},{"$error":"#DIV/0!"},{"$error":"#DIV/0!"},null,null,null,{"$error":"#DIV/0!"},{"$error":"#DIV/0!"},{"$error":"#DIV/0!"},null,null,null,{"$error":"#DIV/0!"},{"$error":"#DIV/0!"},{"$error":"#DIV/0!"},{"$error":"#DIV/0!"},{"$error":"#DIV/0!"},null,{"$error":"#DIV/0!"},{"$error":"#DIV/0!"},{"$error":"#DIV/0!"},{"$error":"#DIV/0!"},{"$error":"#DIV/0!"},null,{"$error":"#DIV/0!"},{"$error":"#DIV/0!"},{"$error":"#DIV/0!"},null,null,null,{"$error":"#DIV/0!"},{"$error":"#DIV/0!"},{"$error":"#DIV/0!"},{"$error":"#DIV/0!"},null,{"$error":"#DIV/0!"},{"$error":"#DIV/0!"},{"$error":"#DIV/0!"},{"$error":"#DIV/0!"},{"$error":"#DIV/0!"}]
["Total costs",{"$error":"#DIV/0!"},{"$error":"#DIV/0!"},{"$error":"#DIV/0!"},null,null,null,{"$error":"#DIV/0!"},{"$error":"#DIV/0!"},null,null,null,null,{"$error":"#DIV/0!"},{"$error":"#DIV/0!"},{"$error":"#DIV/0!"},null,null,null,{"$error":"#DIV/0!"},{"$error":"#DIV/0!"},{"$error":"#DIV/0!"},null,null,null,{"$error":"#DIV/0!"},{"$error":"#DIV/0!"},{"$error":"#DIV/0!"},{"$error":"#DIV/0!"},{"$error":"#DIV/0!"},null,{"$error":"#DIV/0!"},{"$error":"#DIV/0!"},{"$error":"#DIV/0!"},{"$error":"#DIV/0!"},{"$error":"#DIV/0!"},null,{"$error":"#DIV/0!"},{"$error":"#DIV/0!"},{"$error":"#DIV/0!"},null,null,null,{"$error":"#DIV/0!"},{"$error":"#DIV/0!"},{"$error":"#DIV/0!"},{"$error":"#DIV/0!"},null,{"$error":"#DIV/0!"},{"$error":"#DIV/0!"},{"$error":"#DIV/0!"},{"$error":"#DIV/0!"},{"$error":"#DIV/0!"}]
[null,{"$f":"SUM(B13:B20)","v":{"$error":"#DIV/0!"}},{"$error":"#DIV/0!"},{"$error":"#DIV/0!"},0,0,0,{"$error":"#DIV/0!"},{"$error":"#DIV/0!"},0,0,0,null,{"$f":"SUM(N13:N20)","v":{"$error":"#DIV/0!"}},{"$f":"SUM(O13:O20)","v":{"$error":"#DIV/0!"}},{"$f":"SUM(P13:P20)","v":{"$error":"#DIV/0!"}},{"$f":"SUM(Q13:Q20)","v":0},{"$f":"SUM(R13:R20)","v":0},null,{"$f":"SUM(T13:T20)","v":{"$error":"#DIV/0!"}},{"$f":"SUM(U13:U20)","v":{"$error":"#DIV/0!"}},{"$f":"SUM(V13:V20)","v":{"$error":"#DIV/0!"}},{"$f":"SUM(W13:W20)","v":0},{"$f":"SUM(X13:X20)","v":0},null,{"$f":"SUM(Z13:Z20)","v":{"$error":"#DIV/0!"}},{"$f":"SUM(AA13:AA20)","v":{"$error":"#DIV/0!"}},{"$f":"SUM(AB13:AB20)","v":{"$error":"#DIV/0!"}},{"$f":"SUM(AC13:AC20)","v":{"$error":"#DIV/0!"}},{"$f":"SUM(AD13:AD20)","v":{"$error":"#DIV/0!"}},null,{"$f":"SUM(AF13:AF20)","v":{"$error":"#DIV/0!"}},{"$f":"SUM(AG13:AG20)","v":{"$error":"#DIV/0!"}},{"$f":"SUM(AH13:AH20)","v":{"$error":"#DIV/0!"}},{"$f":"SUM(AI13:AI20)","v":{"$error":"#DIV/0!"}},{"$f":"SUM(AJ13:AJ20)","v":{"$error":"#DIV/0!"}},null,{"$f":"SUM(AL13:AL20)","v":{"$error":"#DIV/0!"}},{"$f":"SUM(AM13:AM20)","v":{"$error":"#DIV/0!"}},{"$f":"SUM(AN13:AN20)","v":{"$error":"#DIV/0!"}},null,null,null,{"$f":"SUM(AR13:AR20)","v":{"$error":"#DIV/0!"}},{"$f":"SUM(AS13:AS20)","v":{"$error":"#DIV/0!"}},{"$error":"#DIV/0!"},{"$error":"#DIV/0!"},null,{"$error":"#DIV/0!"},{"$error":"#DIV/0!"},{"$error":"#DIV/0!"},{"$error":"#DIV/0!"},{"$error":"#DIV/0!"}]
[]
["Absolute weights","AU P1","AU P2","AU P3","AU P4","AU P5",null,"HR P1","HR P2","HR P3","HR P4","HR P5",null,"DE P1","DE P2","DE P3","DE P4","DE P5",null,"HU P1","HU P2","HU P3","HU P4","HU P5",null,"NL P1","NL P2","NL P3","NL P4","NL P5",null,"NO P1","NO P2","NO P3","NO P4","NO P5",null,"ES P1","ES P2","ES P3","ES P4","ES P5",null,"UK P1","UK P2","UK P3","UK P4/5",null,"MEAN P1","MEAN P2","MEAN P3","MEAN P4","MEAN P5"]
["Physical functioning",0.95,0.47,0.95236310000000002,null,null,null,0.69005320000000003,0.63,null,null,null,null,1.02,0.2,0.74,null,null,null,0.65237339999999999,0.44152829999999998,0.81058730000000001,null,null,null,1.870052,1.04528,1.654771,2.4821740000000001,2.0253190000000001,null,1.86975,1.0302279999999999,1.4542459999999999,1.8294889999999999,1.349451,null,1.36,2.4526889999999999,1.2,null,null,null,1.2,0.59,1.4,0.84,null,0.14946121149503958,0.10725679240352276,0.10422670655478028,0.13324180864939902,0.12260292152881687]
["Psychological well-being",0.77,0.76,1.5,null,null,null,1.0308409999999999,1.04,null,null,null,null,0.66,0.25,1.04,null,null,null,0.32082159999999998,0.70970719999999998,0.73355550000000003,null,null,null,1.954337,1.3253779999999999,2.4885709999999999,3.1674799999999999,2.303931,null,1.8347899999999999,1.7782960000000001,2.6475219999999999,2.063072,1.777047,null,1.61,1.464971,1.78,null,null,null,1.28,1.1599999999999999,1.5,1.0900000000000001,null,0.14073285333556815,0.14420061707124782,0.1434030591273576,0.16400503031344787,0.15257924591178781]
["Social relations & particpation",0.51,0.43,1.0900000000000001,null,null,null,0.79389549999999998,0.75,null,null,null,null,0.48,0.28000000000000003,0.91,null,null,null,0.56907260000000004,0.53379889999999997,0.74282780000000004,null,null,null,0.98876010000000003,0.78651919999999997,1.5274289999999999,1.742974,1.454834,null,1.156876,1.490305,1.84073,1.5435140000000001,1.691309,null,1.17,1.565266,1.39,null,null,null,1.01,0.86,1.27,0.89,null,0.10513098388747329,0.1113080450305423,0.11043619983497728,0.11418471787709916,0.12181750866685152]
["Enjoyment of life",1.28,1.08,2.1630769999999999,null,null,null,1.3926369999999999,1.43,null,null,null,null,1.35,0.78,1.73,null,null,null,0.71209599999999995,0.92302309999999999,1.1974050000000001,null,null,null,2.6554989999999998,2.2727170000000001,3.1045880000000001,4.2525139999999997,3.3035860000000001,null,2.6153089999999999,2.6399720000000002,3.3567089999999999,3.443686,2.8955380000000002,null,1.55,1.9247669999999999,2.7,null,null,null,2.14,1.82,2.52,1.63,null,0.21004698657032614,0.22527913247444575,0.20948889357964201,0.2450514425546623,0.23170107259534189]
["Resilience",0.98,0.69,1.4961340000000001,null,null,null,1.106549,0.88,null,null,null,null,1.01,0.55000000000000004,1.28,null,null,null,0.69442340000000002,0.4844907,0.74162209999999995,null,null,null,1.7352939999999999,1.285155,1.798454,1.957063,2.1327530000000001,null,1.1429530000000001,0.84562040000000005,1.468796,1.742767,1.5141979999999999,null,1.1299999999999999,1.352015,1.44,null,null,null,1.08,0.81,1.29,0.85,null,0.14281047616208656,0.12409157288305207,0.12120446833025871,0.12145415626091427,0.13010741589581032]
["Person-centeredness",0.25,0.39,0.95,null,null,null,0.94805919999999999,1.0900000000000001,null,null,null,null,0.23,0.3,1.19,null,null,null,0.70618619999999999,0.57364789999999999,1.3442879999999999,null,null,null,0.91404459999999998,0.75257909999999995,1.16476,1.0771250000000001,1.211376,null,0.49297659999999999,0.62148930000000002,0.8625043,0.5488189,0.69337150000000003,null,0.71,1.595208,2.21,null,null,null,0.71,0.57999999999999996,1,0.74,null,8.0761284050266474E-2,0.10120972997307898,0.11624534436783993,6.9221015111406117E-2,8.1268722036728525E-2]
["Continuity of care",0.79,0.65,1.81,null,null,null,1.1743950000000001,1.43,null,null,null,null,1.06,0.83,2.14,null,null,null,0.97732050000000004,0.98258049999999997,1.3528439999999999,null,null,null,1.215292,1.1188149999999999,1.485824,1.418175,1.4288890000000001,null,1.1564140000000001,1.0863849999999999,1.5892900000000001,1.2071499999999999,1.506799,null,0.61,0.91806449999999995,1.26,null,null,null,0.93,0.63,0.98,0.76,null,0.1329641380421466,0.14879294569837384,0.14254748752440932,9.335405912829968E-2,0.10995198823344204]
["Total costs",0.34,0.18,0.34,null,null,null,0.23690149999999999,0.31,null,null,null,null,0.24,0.28000000000000003,0.59,null,null,null,0.18013409999999999,-0.10841530000000001,0.21900030000000001,null,null,null,0.40054329999999999,0.54164710000000005,0.893675,1.298697,1.0568820000000001,null,0.2378729,0.1688056,0.42312759999999999,0.79304110000000005,0.42018179999999999,null,0.14000000000000001,0.29722660000000001,0.95,null,null,null,0.56999999999999995,0.44,0.8,0.31,null,3.8092066457093052E-2,3.7861164465736459E-2,5.244784068073486E-2,5.9487770104771492E-2,4.9971125131221088E-2]
[null,5.87,4.6500000000000004,10.3015741,0,0,null,7.3733314000000014,7.5599999999999987,null,null,null,null,6.0500000000000007,3.4699999999999998,9.620000000000001,null,null,null,4.8124278,4.5403612999999998,7.1421299999999999,null,null,null,11.733822000000002,9.1280903999999996,14.118072,17.396202000000002,14.91757,null,10.5069415,9.6611013000000021,13.642924899999999,13.171538000000002,11.847895299999999,null,8.2800000000000011,11.570207099999999,12.929999999999998,null,null,null,8.9200000000000017,6.8900000000000006,10.760000000000002,7.1099999999999994,null,{"$f":"SUM(AW24:AW31)","v":0.99999999999999978},1,0.99999999999999989,0.99999999999999978,1.0000000000000002]

{"sheet":"Netherlands","index":15,"n_rows":10,"n_cols":9,"rows_kept":10,"cut":false,"hidden":true,"merged":[[0,1,0,5],[0,7,0,8]]}
["the Netherlands","Weights",null,null,null,null,null,"Terminology in Dutch"]
[null,"Patients","Partners","Professionals","Payers","Policy makers",null,"Criteria","Definitions"]
["Physical functioning",0.15937279430350995,0.11451245049019235,0.11720941782985665,0.14268482281362332,0.13576735353009908,null,"Lichamelijk functioneren","een acceptabele lichamelijke gezondheid en het kunnen doen van dagelijkse activiteiten zonder hulp (zoals aankleden, zitten en opstaan van een stoel, medicatie innemen)"]
["Psychological well-being",0.1665558758263079,0.14519772941775425,0.17626847348561475,0.18207882387201524,0.15444412193138696,null,"Psychisch welzijn","de afwezigheid van stress, zorgen, rusteloosheid, angst en neerslachtige gevoelens"]
["Social relations & participation",8.426581722477125E-2,8.6164703189179639E-2,0.10818963099210713,0.10019278920766728,9.7524864974657399E-2,null,"Sociale relaties en participatie","het hebben van betekenisvolle relaties met anderen, zoveel als gewenst"]
["Enjoyment of life",0.22631151213986367,0.24898055347918116,0.21990169762556816,0.24445071401217341,0.22145604143302161,null,"Levensvreugde","het hebben van plezier en geluk in het leven"]
["Resilience",0.14788821579192182,0.1407912217871988,0.12738665732828108,0.11249944096993124,0.14296919672574018,null,"Veerkracht","het vermogen om te herstellen van tegenslagen, zich aan te passen en de balans terug te vinden"]
["Person-centeredness",7.7898284122598749E-2,8.2446499434317602E-2,8.2501350042697055E-2,6.1917250673451593E-2,8.1204646601289621E-2,null,"Persoonsgerichtheid","zorg die aansluit bij wat iemand nodig heeft, wat iemand kan en wat iemands wensen zijn"]
["Continuity of care",0.10357170920097475,0.12256835230290883,0.10524269886143094,8.1522104652498276E-2,9.5785640690809568E-2,null,"Continuïteit van zorg","goede samenwerking, afstemming en overdracht tussen zorgverleners waarbij er geen tijd wordt verspild"]
["Total costs",3.413579139005176E-2,5.9338489899267439E-2,6.3300073834444248E-2,7.4654053798639486E-2,7.084813411299562E-2,null,"Totale zorg- en welzijnskosten","de totale zorg- en welzijnskosten van een zorgprogramma, per persoon, per jaar. Let op: Dit gaat om kosten die door de zorgverzekeraar of gemeente betaald worden"]

{"sheet":"Lists","index":16,"n_rows":9,"n_cols":9,"rows_kept":9,"cut":false,"hidden":true,"merged":[]}
["Austria",null,"Better performance",null,"Yes",null,"2 alternatives",null,"Global ranging standardisation"]
["Croatia",null,"Worse performance",null,"No",null,"3 alternatives",null,"Relative standardisation"]
["Germany"]
["Hungary"]
["the Netherlands"]
["Norway"]
["Spain"]
["U.K."]
["Mean all countries"]